Cogmind - Beta 14 --- EXPLORER MODE // 2024.11.09 @ 11:54:32 Player: H3-RMN Result: Crushed by singularity! Performance ------------- Evolutions (9) 4500 Regions Visited (31) 6200 Robots Destroyed (307) 1535 Value Destroyed (13123) 13123 Prototype IDs (305) 6100 Alien Tech Used (16) 3200 Bonus (39552) 39552 TOTAL SCORE: 74210 Bonus ------- Follower Combat Kills 3244 Network Hubs Disabled 600 Registered with UFD 300 Met Data Miner 300 Met Zhirov 300 Built Enhanced Grunts 300 A7 Reached Mainframe 300 Met R17 at Cetus 500 Used Core Reset Matrix 3000 Met R17 at Research 2000 Acquired SGEMP 2000 Delivered SGEMP 2000 Destroyed MAIN.C Guards 500 Met MAIN.C 5000 Destroyed MAIN.C Shell 5000 Zhirov Destroyed MAIN.C 3000 Met Architect 300 Destroyed A8 300 Destroyed Architect 15000 Friendly Fire -4392 Cogmind --------- Core Integrity 0/1600 Matter 420/425 Energy 99/100 System Corruption 10% Temperature Cool (0) Movement Core (50) Location -1/Access_0 Parts ------- > --- POWER (2) -------- (None) > --- PROPULSION (6) --- (None) > --- UTILITY (10) ----- (None) > --- WEAPON (8) ------- (None) > --- INVENTORY (5) ---- Advanced Heavy Siege Treads Improved Matter Compressor (300) Heavy Regenerative Plating Peak State ------------ > --- POWER ------------ Zero-point Reactor Zero-point Reactor > --- PROPULSION ------- Combat Linear Gravjet Combat Linear Gravjet Combat Linear Gravjet Combat Linear Gravjet Combat Linear Gravjet Combat Linear Gravjet > --- UTILITY ---------- High-capacity Storage Unit Quantum Shading Machine Experimental Sensor Array Experimental Signal Interpreter Experimental Terrain Scanner Experimental Terrain Scan Processor Experimental Hacking Suite Experimental Hacking Suite Microwarp Drive > --- WEAPON ----------- Cooled Nova Cannon Nanosword Nanosword Nanosword Sigix Broadsword > --- INVENTORY -------- Zero-point Reactor Combat Linear Gravjet 2N-1CE's Frost Array Experimental Matter Compressor Experimental Matter Compressor Femtoactuators Experimental Actuator Array Experimental Reaction Control System SHELL Armor Experimental EM Disruption Field Supercharged TR Integrity Redistributor Core Reset Matrix Molecular Deconstructor SGEMP Prototype [Rating: 250] Favorites ----------- Power Zero-point Reactor Engine Backup Power III Power Core Micro Fission Core Reactor Zero-point Reactor Propulsion Combat Linear Gravjet Treads Advanced Heavy Siege Treads Leg Enhanced Armored Leg Hover Unit Combat Linear Gravjet Flight Unit Biomechanical Wings Utility Experimental Hacking Suite Device Experimental Sensor Array Storage Large Storage Unit Processor Experimental Signal Interpreter Hackware Experimental Hacking Suite Protection Improved Utility Shielding Artifact Phase Armor Weapon Point Singularity Launcher Energy Gun Medium Laser Energy Cannon Cooled Nova Cannon Ballistic Gun Heavy Machine Gun Ballistic Cannon Linear Accelerator Launcher Point Singularity Launcher Special Weapon CPS Tube Impact Weapon Core Stripper Slashing Weapon Nanosword Piercing Weapon Force Lance Special Melee Weapon Advanced Datajack Build | -11 -10 -10 -9 -9 -9 -9 -6 -6 -6 -6 -5 -5 -5 -5 -5 -5 -4 -4 -4 -4 -4 -4 -3 -3 -3 -2 -2 -2 -1 -1 -1 ------- Run | Yrd Mat Min Mat Sto Rec Scr Fac Low Low Dat Pro Fac Ext Cet Arc Hub Fac Was Fac Upp Upp Zhi Pro Res Tes Res Qua Sec Acc Com Ac0 Slots Evolved 19 | . 1 . 2 . . . 6 . . . . 2 . . . . 2 . . . . . . 2 . 2 . . 2 . . Power 1 | . . . . . . . 1 . . . . . . . . . . . . . . . . . . . . . . . . Propulsion 4 | . . . 1 . . . 3 . . . . . . . . . . . . . . . . . . . . . . . . Utility 8 | . 1 . 1 . . . 2 . . . . 2 . . . . 2 . . . . . . . . . . . . . . Weapon 6 | . . . . . . . . . . . . . . . . . . . . . . . . 2 . 2 . . 2 . . Parts Attached 697 | 7 2 1 21 12 6 10 58 3 7 2 2 20 20 12 6 6 90 1 43 6 6 3 5 15 85 11 23 21 72 103 18 Power 49 | 1 . . 4 1 . . 5 . . 1 . 2 1 . . . 4 1 5 . . . . 5 4 2 3 . 7 3 . Engine 12 | 1 . . 4 1 . . 2 . . . . . . . . . 1 1 1 . . . . 1 . . . . . . . Core 9 | . . . . . . . 3 . . 1 . 2 1 . . . 1 . . . . . . 1 . . . . . . . Reactor 28 | . . . . . . . . . . . . . . . . . 2 . 4 . . . . 3 4 2 3 . 7 3 . Propulsion 83 | 2 1 . 6 1 3 . 13 . . . . 8 1 2 . . 20 . 4 . . . . 2 11 . . 1 3 5 . Treads 9 | 2 1 . . . . . . . . . . . . 1 . . . . . . . . . . 1 . . . . 4 . Leg 1 | . . . . . . . . . . . . . . . . . 1 . . . . . . . . . . . . . . Wheel . | . . . . . . . . . . . . . . . . . . . . . . . . . . . . . . . . Hover 26 | . . . 6 1 3 . 1 . . . . . . . . . 1 . . . . . . . 9 . . 1 3 1 . Flight 47 | . . . . . . . 12 . . . . 8 1 1 . . 18 . 4 . . . . 2 1 . . . . . . Utility 361 | 2 1 1 6 2 1 6 32 2 7 1 1 9 6 3 3 5 44 . 23 . 2 3 . 3 30 6 15 20 53 63 11 Device 211 | . 1 1 2 . . . 18 1 5 . 1 1 6 . 1 4 27 . 18 . 2 2 . 2 17 5 13 14 34 29 7 Storage 19 | 1 . . 1 1 . 1 2 . . . . 1 . . . . 1 . 1 . . . . . 1 . . . 2 7 . Processor 30 | 1 . . 2 . . . 3 1 2 . . 1 . . . . 4 . . . . . . . . . . . 2 14 . Hackware 23 | . . . 1 1 . 2 2 . . . . 5 . . 2 . 6 . 2 . . . . . 1 1 . . . . . Protection 76 | . . . . . 1 3 7 . . 1 . 1 . 3 . 1 6 . 2 . . 1 . 1 11 . 1 5 15 13 4 Artifact 2 | . . . . . . . . . . . . . . . . . . . . . . . . . . . 1 1 . . . Weapon 204 | 2 . . 5 8 2 4 8 1 . . 1 1 12 7 3 1 22 . 11 6 4 . 5 5 40 3 5 . 9 32 7 Energy Gun 24 | 1 . . 1 . 1 . . 1 . . 1 . 1 1 . . 1 . 3 . . . . . 11 1 . . 1 . . Energy Cannon 27 | . . . 2 3 . 2 2 . . . . . . . . 1 1 . . . . . . . 10 1 1 . 1 1 2 Ballistic Gun 21 | 1 . . 2 2 . . . . . . . . . 1 . . . . . . . . . . 1 . . . 1 13 . Ballistic Cannon 19 | . . . . . . . . . . . . . 3 1 . . 4 . 3 1 2 . 1 2 1 . . . 1 . . Launcher 22 | . . . . 2 1 . . . . . . . . . . . 2 . . 1 . . 1 . . . . . 1 9 5 Special Weapon 22 | . . . . . . . 2 . . . . . 1 3 . . . . 1 1 . . . . 5 . . . 1 8 . Impact Weapon 1 | . . . . . . . . . . . . . . . . . . . . . . . . . . . 1 . . . . Slashing Weapon 51 | . . . . . . . 3 . . . . 1 6 . 2 . 7 . 3 3 2 . 3 3 12 1 3 . 1 1 . Piercing Weapon 2 | . . . . . . . . . . . . . . . . . . . . . . . . . . . . . 2 . . Special Melee Weapon 15 | . . . . 1 . 2 1 . . . . . 1 1 1 . 7 . 1 . . . . . . . . . . . . Unidentified Prototypes 72 | . . . 1 2 2 . 6 . . 1 . . . 4 . 1 12 . 4 1 . 2 . . 16 . 5 2 3 10 . Corrupted Parts 1 | . . . . . . 1 . . . . . . . . . . . . . . . . . . . . . . . . . System Corruption 2 | . . . . . . 2 . . . . . . . . . . . . . . . . . . . . . . . . . Parts Lost 20 | . . . 1 . . . 5 . . 3 . . . . . . 2 . 2 1 . . . 2 . . . 1 . 2 1 Power 4 | . . . . . . . 1 . . 1 . . . . . . . . 1 . . . . 1 . . . . . . . Propulsion 4 | . . . 1 . . . 1 . . 1 . . . . . . . . 1 . . . . . . . . . . . . Utility 10 | . . . . . . . 2 . . 1 . . . . . . 2 . . . . . . 1 . . . 1 . 2 1 Weapon 2 | . . . . . . . 1 . . . . . . . . . . . . 1 . . . . . . . . . . . Highest Loss Streak 4 | . . . 1 . . . 4 . . 3 . . . . . . 1 . 1 1 . . . 2 . . . 1 . 2 1 To Critical Strikes . | . . . . . . . . . . . . . . . . . . . . . . . . . . . . . . . . Average Slot Usage (%) 91 | . 99 100 99 99 99 93 93 86 86 87 78 89 93 92 93 93 92 100 95 93 90 90 90 82 97 99 96 94 87 81 75 Engine 2 | . 12 12 10 10 10 10 8 . . . . . . . . . 4 5 1 . . . . . . . . . . . . Core 1 | . . . . . . . 1 6 6 6 6 8 11 11 11 11 2 . . . . . . 1 . . . . . . . Reactor 3 | . . . . . . . . . . . . . . . . . 3 5 5 10 10 10 10 6 9 8 7 8 7 5 2 Treads 3 | . 24 25 . . . . . . . . . . . . . . . . . . . . . . . . . . . 5 10 Hover 11 | . . . 28 29 30 30 2 . . . . . . . . . . . . . . . . . 22 25 25 25 23 10 . Flight 10 | . . . . . . . 34 37 37 37 31 31 27 27 27 27 25 30 29 30 30 30 30 27 4 . . . . . . Device 12 | . 12 22 19 10 9 . 7 12 12 9 12 11 11 5 10 9 9 10 13 15 15 15 15 13 13 15 15 16 17 12 10 Storage 5 | . 12 12 10 10 10 10 6 6 6 6 6 5 5 5 5 5 5 5 5 5 5 5 5 4 4 4 4 4 3 3 2 Processor 7 | . 12 2 6 4 . . 8 17 17 18 18 12 11 11 11 11 12 15 12 10 10 10 10 9 9 8 8 8 4 6 2 Hackware 9 | . . . 4 15 20 20 5 . . . . 13 16 16 16 16 20 20 18 20 20 20 20 14 13 12 12 8 7 . . Protection 3 | . . . . . . 9 5 . . 3 . . . 4 . . 1 . . . . . . 2 3 . . 2 2 6 10 Energy Gun 1 | . 12 12 . . . . . . . . . . . . . . . . . . . . . . 6 . . . . . . Energy Cannon 1 | . . . 5 9 9 4 . . . . . . . . . 1 . . . . . . . . 1 3 4 4 2 . 1 Ballistic Gun 3 | . 12 12 13 10 9 . . . . . . . . . . . . . . . . . . . . . . . . 7 . Launcher 3 | . . . . . . 1 . . . . . . . . . . . . . . . . . . . . . . . 13 28 Slashing Weapon 5 | . . . . . . . 3 6 6 6 3 5 9 . 10 9 4 5 3 . . . . 2 8 19 17 16 15 4 . Peak Build Rating 250 | 7 9 9 26 34 42 42 80 72 72 72 65 93 101 104 103 106 143 137 162 169 161 153 162 169 205 227 239 250 244 248 249 Average Rating 142 | 5 8 9 19 27 29 36 61 67 68 65 63 83 95 98 101 102 126 137 141 153 152 151 153 156 194 222 233 236 232 219 242 On Entrance 110 | . 7 9 9 26 29 42 40 69 68 72 56 61 93 97 97 102 105 137 137 154 152 152 153 153 158 202 227 236 234 224 244 Naked Turns 9 | . . . . . . . . . . . . . . . . . . . . . . . . . . . . . . . 9 Heaviest Build 278 | 18 19 20 26 26 25 30 44 44 41 38 38 43 55 50 49 49 50 44 70 58 58 57 57 65 105 101 103 104 105 278 278 Greatest Support 260 | 40 40 40 40 26 26 26 44 43 43 43 38 50 50 50 50 50 56 52 59 59 59 59 59 76 104 104 104 104 104 260 240 Greatest Overweight (x) 3 | . . . 2 . . 1 1 1 1 . . . 1 1 2 1 3 . 1 . . . . 1 3 . . . 1 1 1 Average Overweight (x) . | . . . . . . . . . . . . . . . . . . . . . . . . . . . . . . . . Largest Inventory Capacity 30 | 10 10 10 10 10 10 15 15 15 15 15 15 15 15 15 15 15 15 15 15 15 15 15 15 15 20 20 20 20 30 25 25 Average Capacity 16 | 9 10 10 10 10 10 11 10 15 15 15 15 15 15 15 15 15 15 15 15 15 15 15 15 15 18 20 20 20 20 22 24 Most Carried 25 | 5 10 10 10 10 10 15 14 14 15 15 15 15 15 15 15 15 15 15 15 15 15 15 15 15 20 20 20 20 20 25 24 Average Carried 16 | 2 8 10 9 9 9 10 10 13 14 14 13 14 14 14 14 15 14 14 14 14 14 14 14 14 18 19 19 19 19 21 23 Final Capacity 25 | 10 10 10 10 10 10 15 15 15 15 15 15 15 15 15 15 15 15 15 15 15 15 15 15 15 20 20 20 20 20 25 5 Final Carried 24 | 5 10 10 10 10 10 15 13 14 15 13 15 15 15 15 15 15 15 15 15 15 15 15 15 15 20 20 20 20 20 24 5 Class Distribution -------------------- 21% | Hacker-Mutant 14% | Wizard-Scout 12% | Machinist-Ninja 11% | Machinist-Executioner 7% | Machinist-Gladiator 5% | Scavenger-Executioner 4% | Hacker-Assassin 4% | Hacker-Scout 4% | Wizard-Ninja 4% | Hacker-Sprinter Dominant Class ---------------- Hacker-Mutant | -10/Materials Hacker-Mutant | -10/Mines Hacker-Mutant | -9/Materials Hacker-Mutant | -9/Storage Hacker-Mutant | -9/Recycling Hacker-Mutant | -9/Scraptown Hacker-Sprinter | -6/Factory Hacker-Scout | -6/Lower Caves Trapper-Scout | -6/Lower Caves Trapper-Scout | -6/Data Miner Trapper-Scout | -5/Proximity Caves Hacker-Scout | -5/Factory Hacker-Scout | -5/Extension Hacker-Sprinter | -5/Cetus Hacker-Assassin | -5/Archives Hacker-Scout | -5/Hub_04(d) Wizard-Ninja | -4/Factory Wizard-Ninja | -4/Waste Wizard-Scout | -4/Factory Wizard-Scout | -4/Upper Caves Wizard-Scout | -4/Upper Caves Wizard-Scout | -4/Zhirov Wizard-Scout | -3/Proximity Caves Wizard-Scout | -3/Research Wizard-Scout | -3/Testing Machinist-Ninja | -2/Research Machinist-Ninja | -2/Quarantine Machinist-Ninja | -2/Section 7 Machinist-Ninja | -1/Access Machinist-Executioner | -1/Command Machinist-Executioner | -1/Access_0 Resources | -11 -10 -10 -9 -9 -9 -9 -6 -6 -6 -6 -5 -5 -5 -5 -5 -5 -4 -4 -4 -4 -4 -4 -3 -3 -3 -2 -2 -2 -1 -1 -1 ----------- Run | Yrd Mat Min Mat Sto Rec Scr Fac Low Low Dat Pro Fac Ext Cet Arc Hub Fac Was Fac Upp Upp Zhi Pro Res Tes Res Qua Sec Acc Com Ac0 Matter Collected 17077 | 275 220 46 484 298 101 78 557 70 70 . 35 184 346 228 60 60 1306 . 471 124 64 300 184 638 1638 110 220 262 474 3696 4478 Remotely 346 | . . . . . . . . . . . . . . . . . . . . . . . . . . . . . . . 346 Salvage Created 19649 | 102 556 126 1335 909 116 . 571 75 100 . 27 182 579 62 607 171 1347 . 550 . . . 21 174 1497 793 459 594 2036 6509 151 Parts 1056 | 6 26 1 74 54 11 . 25 2 5 . 1 10 32 6 37 18 64 . 26 . . . 2 14 92 43 24 23 136 317 7 Haulers Intercepted 23 | . 2 . 4 6 . . 2 . . . . . . . . . 7 . . . . . . . . . . . 2 . . Recyclers Shooed 3 | . . 1 1 . . . . . . . . 1 . . . . . . . . . . . . . . . . . . . Parts Field Recycled . | . . . . . . . . . . . . . . . . . . . . . . . . . . . . . . . . Retrieved Matter . | . . . . . . . . . . . . . . . . . . . . . . . . . . . . . . . . Parts Self-Destructed . | . . . . . . . . . . . . . . . . . . . . . . . . . . . . . . . . Prevented . | . . . . . . . . . . . . . . . . . . . . . . . . . . . . . . . . Kills | -11 -10 -10 -9 -9 -9 -9 -6 -6 -6 -6 -5 -5 -5 -5 -5 -5 -4 -4 -4 -4 -4 -4 -3 -3 -3 -2 -2 -2 -1 -1 -1 ------- Run | Yrd Mat Min Mat Sto Rec Scr Fac Low Low Dat Pro Fac Ext Cet Arc Hub Fac Was Fac Upp Upp Zhi Pro Res Tes Res Qua Sec Acc Com Ac0 Combat Hostiles Destroyed 160 | . 9 13 23 12 2 . 5 1 1 . . . 6 1 . . 8 . 3 . . . 3 . 11 6 6 4 21 18 7 Melee 79 | . . . . . . . 4 . 1 . . . 6 . . . 5 . . . . . . . 8 6 6 4 21 18 . Guns 43 | . 9 13 14 2 . . . 1 . . . . . . . . . . 3 . . . . . 1 . . . . . . Cannons 24 | . . . 7 10 2 . . . . . . . . 1 . . . . . . . . . . 1 . . . . . 3 AOE 10 | . . . . . . . . . . . . . . . . . 3 . . . . . 3 . 1 . . . . . 3 Classes Destroyed 22 | 2 4 2 3 . . . 2 1 1 . . . 1 . 1 . 1 . . . . . . . 1 . . . 1 2 . Worker 18 | . 1 . . . . . . . . . . . . . . 3 3 . . . . . . . 2 4 . . 3 2 . Builder 12 | . . . . . . . 1 . . . . . 1 . . 1 . . . . . . . . 3 . . . 6 . . Tunneler 3 | 2 . . . . . . . . . . . . . . . . . . . . . . . 1 . . . . . . . Hauler 23 | . 2 . 4 6 . . 2 . . . . . . . . . 7 . . . . . . . . . . . 2 . . Recycler 11 | 1 . . . . . . . . . . . 1 1 . . . . . . . . . . . 3 1 . . . 4 . Carrier 1 | . . . . . . . . . . . . . . . . . . . . . . . . . . . . . . 1 . Minesweeper 2 | . . . . . . . . . 2 . . . . . . . . . . . . . . . . . . . . . . Mechanic 2 | . . . . . . . 1 . . . . . . . . . . . . . . . . . . . . . 1 . . Operator 21 | . . . 1 1 . . 1 . . . . . 2 . 9 1 . . . . . . . 1 . 1 3 1 . . . Watcher 60 | . 3 . 5 2 . . 2 . . . . 2 1 . . 2 8 . 8 . . . . 3 3 5 2 5 7 2 . Swarmer 35 | . . 2 4 1 . . 2 . . . . . . . . . 4 . . . . . 3 . . 3 4 . 8 4 . Grunt 47 | . 9 . 11 5 . . 2 . 1 . . . 3 . . . 2 . 1 . . . . . 3 1 2 2 2 3 . Brawler 2 | . . . 2 . . . . . . . . . . . . . . . . . . . . . . . . . . . . Duelist 1 | . . . . . . . . . . . . . . . . . . . . . . . . . . . . . . 1 . Researcher 1 | . . . . . . . . . . . . . . . . . . . . . . . . . 1 . . . . . . Sentry 20 | . . . 6 6 2 . 1 . . . . . 1 . . . . . 2 . . . . . . . . . 1 1 . Hunter 9 | . . . . . . . . . . . . . 2 . . . . . . . . . . . 1 . . 2 . 4 . Programmer 18 | . . . . . . . . . . . . . . . . . 2 . . . . . . . 6 2 . . 8 . . Behemoth 1 | . . . . . . . . . . . . . . . . . . . . . . . . . . . . . 1 . . Cetus Guard 1 | . . . . . . . . . . . . . . 1 . . . . . . . . . . . . . . . . . M Guard 2 | . . . . . . . . . . . . . . . . . . . . . . . . . . . . . . 2 . Enhanced Grunt 4 | . . . . . . . . . . . . . . . 2 . . . . . . . . . . . . . . . 2 Enhanced Programmer 3 | . . . . . . . . . . . . . . . . . . . . . . . . . . . . . . . 3 Combat Programmer 2 | . . . . . . . . . . . . . . . . . . . . . . . . . . . . . . 2 . Protovariant P 1 | . . . . . . . . . . . . . . . . . . . . . . . . . 1 . . . . . . Scrapoid 2 | . . . . . . . . . . . . . . . 1 . . . . . . . . . . . . . 1 . . Assembled 14 | . . 11 . . . . . . . . . . . . . . . . . . . . . . . . . . . 1 2 Mutant 1 | . . . . . . . . 1 . . . . . . . . . . . . . . . . . . . . . . . Best Kill Streak 9 | 3 2 4 4 5 1 . 4 1 2 . . 1 5 1 9 4 6 . 3 . . . 3 2 3 5 4 2 7 7 2 Combat Bots Only 5 | . 2 4 4 3 1 . 3 1 1 . . . 3 1 . . 5 . 1 . . . 3 . 3 2 4 2 5 5 2 Max Kills in Single Turn 4 | 1 1 2 1 1 1 . 1 1 1 . . 1 1 1 1 4 3 . 1 . . . 1 1 2 1 1 1 2 1 4 Gunslinging 1 | . . 1 . . . . . . . . . . . . . . . . . . . . . . . . . . . . . Exploded 2 | . . . . . . . . . . . . . . . . . 2 . . . . . 1 . 1 . . . . . 2 Melee 2 | . . . . . . . 1 . 1 . . . 1 . . . 1 . . . . . . . 2 1 1 1 2 1 . Uniques/NPCs Destroyed 6 | . . . . . . . . . . . . . . . . . . . . . . . . . . . . . . 4 2 MAIN.C Shell (-1/Command) Zhirov (-1/Command) Svarog (-1/Command) Perun (-1/Command) A8 (-1/Access_0) Architect (-1/Access_0) Combat | -11 -10 -10 -9 -9 -9 -9 -6 -6 -6 -6 -5 -5 -5 -5 -5 -5 -4 -4 -4 -4 -4 -4 -3 -3 -3 -2 -2 -2 -1 -1 -1 -------- Run | Yrd Mat Min Mat Sto Rec Scr Fac Low Low Dat Pro Fac Ext Cet Arc Hub Fac Was Fac Upp Upp Zhi Pro Res Tes Res Qua Sec Acc Com Ac0 Hostile Shots Fired 1596 | . 44 34 83 27 4 . 225 2 1 3 5 21 9 10 1 47 56 . 88 6 . . 5 28 130 14 25 75 140 167 346 Missed 553 | . 12 9 21 11 1 . 79 . . 1 1 8 5 6 1 22 24 . 43 3 . . 2 15 40 5 17 28 58 48 93 Damage Taken 12321 | . 310 293 378 125 41 174 1211 16 11 350 47 262 59 145 . 379 347 . 512 38 . . 40 244 682 97 105 660 1001 1757 3037 Core 1889 | . 94 97 88 26 . 116 271 . . 99 23 121 . 49 . 37 69 . 105 14 . . . 82 53 27 . 88 61 128 241 Absorbed by Shields 2251 | . . . 109 . . . . . . . . . . 25 . . . . . . . . . . . . . . . . 2117 Reduced by Siege Mode 161 | . . . . . . . . . . . . . . . . . . . . . . . . . . . . . . . 161 Redirected to Shielding 551 | . . . . . . . 1 . . . . . . . . . . . 43 . . . . . 33 . . 28 59 213 174 Ignored by Resistances 11963 | . 190 176 303 77 24 . 759 11 7 192 28 154 35 96 . 221 211 . 306 23 . . 25 141 1454 103 62 515 905 3008 2937 Regen/Repaired (Parts) 4085 | . 85 . 28 39 . . . . . . . . . . . . 152 . 256 . . . . . 69 39 79 713 582 1419 624 Core Remaining (%) 69 | 100 . 23 . . . 42 . . . . 53 . . . . 79 . . . . . . 83 . 89 . . 87 . . . Volleys Fired 643 | 5 50 36 99 46 6 . 15 3 . . . . 19 15 . 4 7 . 30 3 4 . 11 4 54 13 9 22 14 105 69 Largest 8 | 2 2 2 2 2 2 . 1 1 . . . . 1 1 . 1 1 . 1 1 1 . 1 1 2 1 1 1 1 8 8 Hottest 455 | 70 70 70 91 91 91 . 68 120 . . . . 120 66 . 90 90 . 120 80 70 . 80 70 170 50 50 150 50 225 455 Shots Fired 1321 | 10 99 72 198 88 11 . 15 3 . . . . 20 15 . 4 7 . 30 3 4 . 11 4 58 13 9 22 14 391 220 Gun 829 | 10 99 72 159 41 6 . . 3 . . . . 2 . . . . . 22 . . . . . 38 . . . . 377 . Cannon 274 | . . . 39 47 5 . 14 . . . . . 17 11 . 4 3 . 8 2 4 . 2 4 13 13 9 22 14 . 43 Launcher 192 | . . . . . . . . . . . . . . . . . 4 . . 1 . . 9 . . . . . . 1 177 Special 26 | . . . . . . . 1 . . . . . 1 4 . . . . . . . . . . 7 . . . . 13 . Kinetic 721 | 5 50 36 154 41 6 . . . . . . . 17 11 . . 2 . 8 2 4 . 2 4 2 . . . . 377 . Thermal 359 | 5 49 36 44 47 5 . 14 3 . . . . 2 . . 4 1 . 22 . . . . . 26 13 9 22 14 . 43 Explosive 192 | . . . . . . . . . . . . . . . . . 4 . . 1 . . 9 . . . . . . 1 177 Electromagnetic 23 | . . . . . . . . . . . . . . . . . . . . . . . . . 23 . . . . . . Robot Hit Streak 72 | 5 36 9 38 32 12 . 20 30 . . . . 31 27 . . 30 . 25 . . . . . 17 . . . 4 64 72 Robot Miss Streak 2 | 2 2 2 2 1 1 . . . . . . . 1 . . . . . 1 . . . . . 2 . . . 1 1 2 Penetration Max 2 | . . . . . . . . . . . . . . . . . . . 1 . . . . . 2 . . . . 2 . Secondary Targets 3 | . 1 2 . . . . . . . . . . . . . . . . . . . . . . . . . . . . . Max Gunslinging Chain 1 | . 1 1 . . . . . . . . . . . . . . . . . . . . . . . . . . . . . Shots Hit Robots 1578 | 5 80 53 162 69 8 . 49 2 5 . 1 7 26 16 26 4 69 . 36 . 1 . . 12 88 33 18 25 91 488 204 Core Hits 688 | 4 34 26 54 25 2 . 14 6 2 . . 2 15 3 10 11 27 . 25 1 . . 5 4 40 16 7 9 36 198 112 Critical Kills 13 | . . 1 4 . . . . . . . . . . . . . . . . . . . . . . . . . . 7 1 Critical Parts Destroyed 10 | . 1 . 1 1 . . . . . . . . . . . . . . . . . . . . . . . . . 7 . Critical Strikes 98 | . 7 4 5 1 . . 5 . 1 . . . 2 2 2 . 11 . 2 . . . . 2 7 2 3 5 6 30 1 Burn 9 | . 6 3 . . . . . . . . . . . . . . . . . . . . . . . . . . . . . Meltdown 4 | . . . 3 . . . . . . . . . . . . . . . . . . . . . . . . . . . 1 Destroy 21 | . 1 1 2 1 . . . . . . . . . . . . . . . . . . . . . . . . . 16 . Blast 2 | . . . . . . . . . . . . . . 2 . . . . . . . . . . . . . . . . . Sever 62 | . . . . . . . 5 . 1 . . . 2 . 2 . 11 . 2 . . . . 2 7 2 3 5 6 14 . Melee Attacks 819 | . . . . . . . 42 . 6 1 1 10 27 1 28 15 96 . 52 4 2 . 3 19 84 53 39 43 117 176 . Impact . | . . . . . . . . . . . . . . . . . . . . . . . . . . . . . . . . Slashing 806 | . . . . . . . 40 . 6 1 1 10 26 . 27 15 88 . 52 4 2 . 3 19 84 53 39 43 117 176 . Piercing . | . . . . . . . . . . . . . . . . . . . . . . . . . . . . . . . . Sneak Attacks 109 | . . . . . . . 6 . 2 . . 2 5 1 19 1 18 . . . 1 . . 3 8 7 1 1 19 15 . Combat Hostiles 9 | . . . . . . . . . . . . . 1 . . . . . . . . . . . . 2 . . 2 4 . Follow-up Attacks 152 | . . . . . . . . . . . . . 2 . 3 . . . . . . . . . 14 8 4 6 31 84 . Damage Inflicted 80240 | 66 851 537 1997 1377 144 . 1790 153 304 . 86 444 1254 424 2017 578 3661 . 1953 114 96 . 620 915 5722 2490 1405 1990 7829 20307 21116 Guns 13075 | 66 851 537 1259 427 47 . . 153 . . . . 110 . . . . . 582 . . . . . 458 . . . . 8585 . Cannons 3938 | . . . 738 950 97 . 285 . . . . . 157 424 . . . . . . . . . . 348 . . . 44 . 895 Explosions 22138 | . . . . . . . . . . . . . . . . 319 503 . . 114 . . 620 . 361 . . . . . 20221 Melee 41083 | . . . . . . . 1505 . 304 . 86 444 987 . 2017 259 3158 . 1371 . 96 . . 915 4555 2490 1405 1990 7785 11716 . Ramming 6 | . . . . . . . . . . . . . . . . . . . . . . . . . . . . . . 6 . Kinetic 11390 | 18 304 225 1203 427 47 . . . . . . . 157 424 . . . . . . . . . . . . . . . 8585 . Thermal 5940 | 48 547 312 794 950 97 . 285 153 . . . . 110 . . . . . 582 . . . . . 1123 . . . 44 . 895 Explosive 21458 | . . . . . . . . . . . . . . . . . 503 . . 114 . . 620 . . . . . . . 20221 Electromagnetic 363 | . . . . . . . . . . . . . . . . 319 . . . . . . . . 44 . . . . . . Impact . | . . . . . . . . . . . . . . . . . . . . . . . . . . . . . . . . Slashing 41083 | . . . . . . . 1505 . 304 . 86 444 987 . 2017 259 3158 . 1371 . 96 . . 915 4555 2490 1405 1990 7785 11716 . Piercing . | . . . . . . . . . . . . . . . . . . . . . . . . . . . . . . . . Highest Corruption 10 | . . . 1 1 1 2 . . . . . 3 3 . . 1 . 6 6 . . . . . . . . . 1 1 10 Average Corruption 2 | . . . 1 1 1 2 . . . . . 1 1 . . 1 . 6 4 . . . . . . . . . 1 1 9 Corruption Purged 10 | . . . . . . . . . . . . . 3 . . . . . 6 . . . . . . . . . . 1 . Corruption Blocked . | . . . . . . . . . . . . . . . . . . . . . . . . . . . . . . . . Effects 100 | . . . 10 11 5 1 . . . . . 4 4 . . . . 1 2 . . . . . . . . . 4 25 33 Message Errors 24 | . . . 3 2 1 . . . . . . . 1 . . . . . 2 . . . . . . . . . 1 5 9 Matter Fused 25 | . . . 4 4 . 1 . . . . . 2 . . . . . . . . . . . . . . . . 1 6 7 Heat Flow Errors 19 | . . . . 1 . . . . . . . 1 1 . . . . . . . . . . . . . . . 2 7 7 Energy Discharges 8 | . . . 1 1 1 . . . . . . 1 1 . . . . . . . . . . . . . . . . 1 2 Parts Rejected 3 | . . . . . 1 . . . . . . . . . . . . 1 . . . . . . . . . . . . 1 Parts Fused 1 | . . . . . . . . . . . . . . . . . . . . . . . . . . . . . . 1 . Data Loss (minor) 6 | . . . 1 1 . . . . . . . . . . . . . . . . . . . . . . . . . 1 3 Data Loss (major) 2 | . . . . . 1 . . . . . . . . . . . . . . . . . . . . . . . . 1 . Misfires 2 | . . . . 1 . . . . . . . . 1 . . . . . . . . . . . . . . . . . . Alerts 2 | . . . 1 . . . . . . . . . . . . . . . . . . . . . . . . . . 1 . Weapon Failures 8 | . . . . 1 1 . . . . . . . . . . . . . . . . . . . . . . . . 2 4 Overload Shots 3 | . . . . . . . . . . . . . . . . . . . . . . . . . . . . 1 . . 2 Effects 1 | . . . . . . . . . . . . . . . . . . . . . . . . . . . . . . . 1 Energy Bleed 1 | . . . . . . . . . . . . . . . . . . . . . . . . . . . . . . . 1 Overflow Damage 6356 | . . . 10 . . . 268 . 104 . 67 122 88 . 521 99 179 . 209 . . . 50 194 535 344 316 243 1203 1277 527 Projectiles 16 | . . . 10 . . . . . . . . . 2 . . . . . . . . . . . . . . . 4 . . Explosions 655 | . . . . . . . . . . . . . . . . . 68 . . . . . 50 . 10 . . . . . 527 Melee 5685 | . . . . . . . 268 . 104 . 67 122 86 . 521 99 111 . 209 . . . . 194 525 344 316 243 1199 1277 . Knockbacks 2 | . . . . . . . . . . . . . 1 1 . . . . . . . . . . . . . . . . . Impact . | . . . . . . . . . . . . . . . . . . . . . . . . . . . . . . . . Kinetic 2 | . . . . . . . . . . . . . 1 1 . . . . . . . . . . . . . . . . . Secondary . | . . . . . . . . . . . . . . . . . . . . . . . . . . . . . . . . Self-Inflicted Damage 182 | . . . . . . . . . . . . . . . . 68 . . . . . . . . . . . . . . 114 Shots 3 | . . . . . . . . . . . . . . . . 1 . . . . . . . . . . . . . . 2 Rammed 1 | . . . . . . . . . . . . . . . . . . . . . . . . . . . . . . 1 . Targets Rammed 1 | . . . . . . . . . . . . . . . . . . . . . . . . . . . . . . 1 . Kicked . | . . . . . . . . . . . . . . . . . . . . . . . . . . . . . . . . Crushed . | . . . . . . . . . . . . . . . . . . . . . . . . . . . . . . . . Highest Temperature 370 | 90 191 170 289 307 94 . 370 258 64 3 27 178 244 202 3 197 54 . 187 2 . . . . 102 6 . 24 158 158 138 Average Temperature 64 | 49 61 52 60 70 40 . 119 137 27 2 12 51 95 52 1 91 23 . 56 1 . . . . 31 6 . 18 83 84 32 Received Heat Transfer 2504 | . 264 20 257 84 . . 733 60 9 . 45 45 18 24 . 180 118 . 73 12 . . . 45 64 45 18 27 138 225 . Effects 2 | . . . . . . . 2 . . . . . . . . . . . . . . . . . . . . . . . . Short Circuit 2 | . . . . . . . 2 . . . . . . . . . . . . . . . . . . . . . . . . Siege Activations 18 | . . . . . . . . . . . . . . . . . . . . . . . . . . . . . . . 18 Total Turns 108 | . . . . . . . . . . . . . . . . . . . . . . . . . . . . . . . 108 Longest Duration 39 | . . . . . . . . . . . . . . . . . . . . . . . . . . . . . . . 39 Robots Corrupted . | . . . . . . . . . . . . . . . . . . . . . . . . . . . . . . . . Combat Hostiles . | . . . . . . . . . . . . . . . . . . . . . . . . . . . . . . . . Parts Fried 3 | . . . . . 1 . . . 2 . . . . . . . . . . . . . . . . . . . . . . Impact Corruptions . | . . . . . . . . . . . . . . . . . . . . . . . . . . . . . . . . Robots Melted 5 | . . . 3 . . . 1 . . . . . . . . . . . . . . . . . . . . . . . 1 Combat Hostiles 4 | . . . 2 . . . 1 . . . . . . . . . . . . . . . . . . . . . . . 1 Parts Melted 22 | 1 3 . 8 . . . 2 2 . . . . . . . . . . . . . . . . 3 . . . . . 3 Heat Transferred 11176 | 148 2035 1147 1406 1591 185 . 518 350 . . . . 250 . . . . . 1325 . . . . . 1332 . . . 37 . 852 Parts Sabotaged . | . . . . . . . . . . . . . . . . . . . . . . . . . . . . . . . . Parts Stolen . | . . . . . . . . . . . . . . . . . . . . . . . . . . . . . . . . Parts Stripped . | . . . . . . . . . . . . . . . . . . . . . . . . . . . . . . . . Power Chain Reactions 2 | . . . . . . . . . . . . . . . . . . . . . . . . . 2 . . . . . . Alert | -11 -10 -10 -9 -9 -9 -9 -6 -6 -6 -6 -5 -5 -5 -5 -5 -5 -4 -4 -4 -4 -4 -4 -3 -3 -3 -2 -2 -2 -1 -1 -1 ------- Run | Yrd Mat Min Mat Sto Rec Scr Fac Low Low Dat Pro Fac Ext Cet Arc Hub Fac Was Fac Upp Upp Zhi Pro Res Tes Res Qua Sec Acc Com Ac0 Peak Influence 465 | 15 138 50 367 354 222 . 337 . . . . 465 246 246 217 410 308 32 329 . . . . 369 181 319 135 229 373 405 . Initial 316 | . 7 1 . 17 . . . . . . . 316 73 38 68 . 72 2 16 . . . . 36 . 76 26 35 9 . . Average 97 | 5 43 16 155 91 50 . 80 . . . . 320 105 139 45 138 90 16 125 . . . . 166 40 133 83 71 130 176 . Maximum Alert Level 2 | . . . 1 1 1 . 1 . . . . 2 1 1 1 2 1 . 1 . . . . 1 . 1 . 1 1 2 . Low Security (%) 86 | 100 100 100 67 85 95 . 95 . . . . 11 82 83 83 79 89 100 73 . . . . 63 100 61 100 98 70 93 . Level 1 13 | . . . 32 14 4 . 4 . . . . 70 17 16 16 18 10 . 26 . . . . 36 . 38 . 1 29 5 . Level 2 . | . . . . . . . . . . . . 18 . . . 2 . . . . . . . . . . . . . 1 . Level 3 . | . . . . . . . . . . . . . . . . . . . . . . . . . . . . . . . . Level 4 . | . . . . . . . . . . . . . . . . . . . . . . . . . . . . . . . . Level 5 . | . . . . . . . . . . . . . . . . . . . . . . . . . . . . . . . . High Security . | . . . . . . . . . . . . . . . . . . . . . . . . . . . . . . . . Max Security . | . . . . . . . . . . . . . . . . . . . . . . . . . . . . . . . . Squads Dispatched 65 | . . . 3 1 . . 9 . . . . 3 2 . . 7 5 . 6 . . . . 9 6 1 2 2 5 4 . Investigation 27 | . . . 2 . . . 5 . . . . 2 1 . . 4 2 . 1 . . . . 4 . . . . 4 2 . Extermination 17 | . . . . . . . 1 . . . . 1 . . . . 3 . 2 . . . . . 3 1 1 2 1 2 . Reinforcement 20 | . . . 1 1 . . 2 . . . . . 1 . . 3 . . 3 . . . . 5 3 . 1 . . . . Assault 1 | . . . . . . . 1 . . . . . . . . . . . . . . . . . . . . . . . . Garrison . | . . . . . . . . . . . . . . . . . . . . . . . . . . . . . . . . Intercept . | . . . . . . . . . . . . . . . . . . . . . . . . . . . . . . . . Searches Triggered 1 | . . . . . . . . . . . . 1 . . . . . . . . . . . . . . . . . . . Construction Impeded 2 | . . . . . . . . . . . . . . . . . . . . . . . . . 2 . . . . . . Haulers Reinforced 2 | . . . . . . . 1 . . . . . . . . . . . 1 . . . . . . . . . . . . Active Scanning Responses . | . . . . . . . . . . . . . . . . . . . . . . . . . . . . . . . . Cargo Convoy Interrupts 3 | . . . . . . . 1 . . . . . . . . . 1 . 1 . . . . . . . . . . . . Stealth | -11 -10 -10 -9 -9 -9 -9 -6 -6 -6 -6 -5 -5 -5 -5 -5 -5 -4 -4 -4 -4 -4 -4 -3 -3 -3 -2 -2 -2 -1 -1 -1 --------- Run | Yrd Mat Min Mat Sto Rec Scr Fac Low Low Dat Pro Fac Ext Cet Arc Hub Fac Was Fac Upp Upp Zhi Pro Res Tes Res Qua Sec Acc Com Ac0 Distress Signals 26 | . 1 . 2 . . . 4 . . . . . 1 2 . 2 2 . 1 . . . . 8 1 . . 1 . 1 . Communications Jammed 55 | . . . . . . . . . . . . . . . . 2 6 . . . . . . . 1 . . 16 12 18 . Distress Signals 50 | . . . . . . . . . . . . . . . . 2 4 . . . . . . . 1 . . 15 10 18 . Times Spotted 506 | . 16 13 35 20 4 . 52 1 1 4 5 7 10 9 9 36 34 5 47 2 . . 3 20 21 16 14 19 39 30 34 Peak Tracking Total 19 | . 3 3 6 5 1 . 13 1 1 4 4 3 2 5 1 19 7 5 12 2 . . 2 14 4 3 2 4 5 5 4 Tactical Retreats 67 | . . . 1 1 1 . 7 . . . 1 1 . . . 6 6 . 21 1 . . . 7 . 3 1 6 3 1 . Traps | -11 -10 -10 -9 -9 -9 -9 -6 -6 -6 -6 -5 -5 -5 -5 -5 -5 -4 -4 -4 -4 -4 -4 -3 -3 -3 -2 -2 -2 -1 -1 -1 ------- Run | Yrd Mat Min Mat Sto Rec Scr Fac Low Low Dat Pro Fac Ext Cet Arc Hub Fac Was Fac Upp Upp Zhi Pro Res Tes Res Qua Sec Acc Com Ac0 Traps Triggered 27 | . 2 . 2 1 . 1 5 . . . . 3 1 . . . 1 . 1 . . . . . . . . . 1 9 . Indirectly . | . . . . . . . . . . . . . . . . . . . . . . . . . . . . . . . . Trap Hack Attempts 48 | . . . . 2 . . 14 . . . . . . . . . 32 . . . . . . . . . . . . . . Triggered . | . . . . . . . . . . . . . . . . . . . . . . . . . . . . . . . . Disarmed 5 | . . . . . . . . . . . . . . . . . 1 . . . . . . . . . 4 . . . . Reprogrammed 17 | . . . . 1 . . 2 . . . . . . . . . 10 . 4 . . . . . . . . . . . . Reused 12 | . . . . . . . 2 . . . . . . . . . 3 . 7 . . . . . . . . . . . . Traps Extracted 9 | . . . . . . . 2 . . . . . . . . . 7 . . . . . . . . . . . . . . Installed 10 | . . . . . . 1 2 . . . . . . . . . 4 . 3 . . . . . . . . . . . . Triggered 14 | . . . . . . . 3 . 1 . . . . . . . 3 . 7 . . . . . . . . . . . . Most Traps Carried 12 | . . . . . . . 2 . 12 12 12 12 12 12 12 12 12 9 9 6 7 7 7 7 . . . . . . . Machines | -11 -10 -10 -9 -9 -9 -9 -6 -6 -6 -6 -5 -5 -5 -5 -5 -5 -4 -4 -4 -4 -4 -4 -3 -3 -3 -2 -2 -2 -1 -1 -1 ---------- Run | Yrd Mat Min Mat Sto Rec Scr Fac Low Low Dat Pro Fac Ext Cet Arc Hub Fac Was Fac Upp Upp Zhi Pro Res Tes Res Qua Sec Acc Com Ac0 Machines Disabled 54 | . . . . 2 . . . . 1 . . 6 1 . 1 3 1 . 7 1 . . . . 11 . 7 8 1 4 . Max in Single Turn 4 | . . . . 1 . . . . 1 . . . 1 . . 3 . . . 1 . . . . 4 . 1 1 . 1 . Garrison Access 18 | . . . . 1 . . 1 . . . . . . . . 1 2 . 2 . . . . 2 1 2 1 1 4 . . Network Hub 3 | . . . . . . . . . . . . . . . . 3 . . . . . . . . . . . . . . . Machines Repaired . | . . . . . . . . . . . . . . . . . . . . . . . . . . . . . . . . Machines Dismantled . | . . . . . . . . . . . . . . . . . . . . . . . . . . . . . . . . Machines Sabotaged 1 | . . . . . . . . . . . . . . . . 1 . . . . . . . . . . . . . . . Overloaded Fab Kills . | . . . . . . . . . . . . . . . . . . . . . . . . . . . . . . . . Hacking | -11 -10 -10 -9 -9 -9 -9 -6 -6 -6 -6 -5 -5 -5 -5 -5 -5 -4 -4 -4 -4 -4 -4 -3 -3 -3 -2 -2 -2 -1 -1 -1 --------- Run | Yrd Mat Min Mat Sto Rec Scr Fac Low Low Dat Pro Fac Ext Cet Arc Hub Fac Was Fac Upp Upp Zhi Pro Res Tes Res Qua Sec Acc Com Ac0 Machines Accessed 241 | . 9 . 11 10 12 3 19 . 2 4 . 12 9 1 . 7 23 . 23 1 . 4 1 10 12 12 14 12 18 12 . Terminals 138 | . 8 . 7 8 6 . 9 . . . . 8 8 1 . 6 8 . 11 . . . 1 5 8 5 12 10 8 9 . Fabricators 23 | . . . . . . . 5 . . . . 1 . . . . 4 . 3 . . . . 2 2 3 . . 3 . . Repair Stations 13 | . 1 . 2 1 . . 1 . . . . . . . . . 3 . 2 . . . . . 1 1 . . . 1 . Recycling Units 20 | . . . . . 6 . 2 . . . . 1 1 . . . 3 . 2 . . . . . . . . . 3 2 . Scanalyzers 15 | . . . 2 . . . 2 . . . . 2 . . . . 3 . 2 . . . . 1 . 1 1 1 . . . Garrison Access 18 | . . . . 1 . . . . . . . . . . . 1 2 . 3 . . . . 2 1 2 1 1 4 . . Total Hacks 1128 | . 36 . 41 41 31 7 57 . 2 32 . 46 22 1 . 25 174 . 117 1 . 17 5 64 81 83 63 69 69 44 . Successful 872 | . 24 . 34 33 31 7 46 . 2 32 . 34 15 1 . 17 143 . 96 1 . 17 5 42 63 63 49 46 41 30 . Failed 256 | . 12 . 7 8 . . 11 . . . . 12 7 . . 8 31 . 21 . . . . 22 18 20 14 23 28 14 . Catastrophic 27 | . . . . . . . . . . . . 1 . . . 1 3 . . . . . . 5 3 4 . 1 7 2 . Database Lockouts . | . . . . . . . . . . . . . . . . . . . . . . . . . . . . . . . . Manual 504 | . 31 . 19 21 17 . 11 . . . . 11 11 1 . 20 73 . 64 1 . . . 37 35 40 31 27 29 25 . Terminals 707 | . 34 . 23 37 19 . 22 . . . . 31 20 1 . 24 86 . 75 . . . 5 42 52 50 58 64 29 35 . Fabricators 178 | . . . . . . . 22 . . . . 3 . . . . 43 . 19 . . . . 16 26 23 . . 26 . . Repair Stations 36 | . 2 . 3 2 . . 2 . . . . . . . . . 13 . 5 . . . . . 2 5 . . . 2 . Recycling Units 52 | . . . . . 12 . 4 . . . . 3 2 . . . 9 . 7 . . . . . . . . . 8 7 . Scanalyzers 72 | . . . 15 . . . 7 . . . . 9 . . . . 20 . 6 . . . . 4 . 3 4 4 . . . Garrison Access 24 | . . . . 2 . . . . . . . . . . . 1 3 . 5 . . . . 2 1 2 1 1 6 . . Terminal Hacks 381 | . 16 . 10 20 11 7 12 . 2 32 . 15 12 1 . 9 43 . 36 1 . 17 5 17 22 18 26 28 8 13 . Record 30 | . . . . . . 6 . . 1 11 . . . . . . . . . . . 5 5 . . . 1 . 1 . . Part Schematic 71 | . 3 . 1 2 4 . 1 . . 13 . 1 2 . . . 14 . 8 . . 4 . 6 3 2 3 2 2 . . Robot Schematic 11 | . 2 . . 1 . . 1 . . 5 . . . . . . 1 . . . . . . 1 . . . . . . . Robot Analysis 28 | . 5 . 3 1 . . . . . . . 1 . . . . 1 . 1 . . 4 . 6 1 . 2 2 1 . . Prototype ID Bank 45 | . 4 . 2 2 2 . . . . 3 . . 1 . . . 3 . 4 . . 4 . . 1 4 5 9 . 1 . Open Door 15 | . . . . 2 . . . . 1 . . . 4 1 . . . . . 1 . . . . . . . 2 3 1 . Open DSF 2 | . . . . . . . 1 . . . . . . . . . . . 1 . . . . . . . . . . . . Level Access Points 8 | . . . . 1 . . . . . . . 1 . . . . 1 . 1 . . . . . 1 1 1 1 . . . Branch Access Points 8 | . . . 1 1 . . 1 . . . . 1 . . . . 1 . 1 . . . . 1 . 1 . . . . . Emergency Access Points 11 | . . . . . 1 . . . . . . . . . . . . . 2 . . . . . . 3 1 2 . 2 . Machine Index 10 | . . . . 1 . . . . . . . 1 . . . 1 1 . 1 . . . . . 1 1 1 1 1 . . Terminal Index 9 | . . . 1 1 1 . . . . . . 1 1 . . . 1 . . . . . . . . 1 . 1 . 1 . Fabricator Index 1 | . . . . . . . . . . . . . . . . . 1 . . . . . . . . . . . . . . Repair Station Index 1 | . . . . . . . . . . . . 1 . . . . . . . . . . . . . . . . . . . Recycling Unit Index 1 | . . . . . . . . . . . . . . . . . . . . . . . . . . . . . . 1 . Garrison Index 1 | . . . . . . . . . . . . 1 . . . . . . . . . . . . . . . . . . . Alert Level 7 | . . . . 1 . . . . . . . . 1 . . . 1 . 1 . . . . 1 1 1 . . . . . Unreport Threat 26 | . . . . 1 1 . 2 . . . . 2 . . . 4 4 . 3 . . . . . 1 1 2 4 . 1 . Locate Traps 28 | . . . 1 4 . . 3 . . . . 1 . . . 1 5 . 3 . . . . . 3 . 4 1 . 2 . Disarm Traps 1 | . . . . . . . . . . . . . . . . . . . . . . . . . . . 1 . . . . Reprogram Traps 1 | . . . . . . . . . . . . . . . . . . . 1 . . . . . . . . . . . . Maintenance Status 1 | . . . . . 1 . . . . . . . . . . . . . . . . . . . . . . . . . . Security Status 1 | . . . . . . . . . . . . . . . . . . . . . . . . . . . . 1 . . . Patrol Status 1 | . . . . . . . . . . . . . 1 . . . . . . . . . . . . . . . . . . Recall Investigation 1 | . . . . . . . . . . . . . 1 . . . . . . . . . . . . . . . . . . Recall Extermination 6 | . . . . . . . . . . . . . . . . . 1 . 2 . . . . . . 1 1 1 . . . Recall Reinforcements 5 | . . . . . . . . . . . . . 1 . . . . . . . . . . . 3 . 1 . . . . Hauler Manifests 9 | . 1 . 1 1 . . 1 . . . . 1 . . . . 2 . 1 . . . . . 1 . . . . . . Registered Components 10 | . 1 . . 1 1 . . . . . . . . . . . 1 . 1 . . . . . 1 1 1 1 . 1 . Registered Prototypes 4 | . . . . . . . . . . . . 1 . . . . . . 1 . . . . . 1 . 1 . . . . Zone Layout 25 | . . . . . . . 2 . . . . 2 . . . 3 5 . 4 . . . . 2 4 1 1 . . 1 . Derelict Proto ID Bank 1 | . . . . . . 1 . . . . . . . . . . . . . . . . . . . . . . . . . Disengage Seal 2 | . . . . . . . . . . . . . . . . . . . . . . . . . . . . . . 2 . Fabricator Hacks 137 | . . . . . . . 18 . . . . 2 . . . . 35 . 14 . . . . 10 23 17 . . 18 . . Network Status 6 | . . . . . . . 1 . . . . 1 . . . . 1 . 1 . . . . 1 . 1 . . . . . Load Schematic 65 | . . . . . . . 8 . . . . . . . . . 17 . 7 . . . . 5 11 8 . . 9 . . Build 66 | . . . . . . . 9 . . . . 1 . . . . 17 . 6 . . . . 4 12 8 . . 9 . . Repair Station Hacks 33 | . 2 . 3 2 . . . . . . . . . . . . 13 . 5 . . . . . 2 4 . . . 2 . Scan Component 15 | . 1 . 1 1 . . . . . . . . . . . . 6 . 2 . . . . . 1 2 . . . 1 . Repair 15 | . 1 . 1 1 . . . . . . . . . . . . 6 . 2 . . . . . 1 2 . . . 1 . Refit 3 | . . . 1 . . . . . . . . . . . . . 1 . 1 . . . . . . . . . . . . Recycling Unit Hacks 18 | . . . . . 6 . 1 . . . . 1 1 . . . 3 . 2 . . . . . . . . . 1 3 . Report Inventory 17 | . . . . . 6 . 1 . . . . 1 1 . . . 3 . 2 . . . . . . . . . 1 2 . Retrieve Components 1 | . . . . . . . . . . . . . . . . . . . . . . . . . . . . . . 1 . Scanalyzer 69 | . . . 14 . . . 7 . . . . 8 . . . . 20 . 6 . . . . 3 . 3 4 4 . . . Insert Component 37 | . . . 7 . . . 3 . . . . 4 . . . . 9 . 3 . . . . 2 . 1 4 4 . . . Analyze 32 | . . . 7 . . . 4 . . . . 4 . . . . 11 . 3 . . . . 1 . 2 . . . . . Garrison Access Hacks 17 | . . . . 1 . . . . . . . . . . . 1 2 . 2 . . . . 2 1 2 1 1 4 . . Seal Access 17 | . . . . 1 . . . . . . . . . . . 1 2 . 2 . . . . 2 1 2 1 1 4 . . Unauthorized Hacks 217 | . 6 . 7 10 14 . 8 . . . . 8 2 . . 7 27 . 31 . . . . 10 15 19 18 13 10 12 . Terminals 161 | . 6 . 6 10 8 . 3 . . . . 7 1 . . 7 15 . 20 . . . . 6 13 14 18 13 4 10 . Track 31 | . . . . 1 1 . 2 . . . . . . . . . 4 . 5 . . . . 1 4 2 5 5 . 1 . Assimilate 9 | . . . . . . . . . . . . . . . . 1 . . 3 . . . . 1 . 2 2 . . . . Botnet 42 | . 1 . 1 3 2 . 1 . . . . 2 1 . . 2 4 . 4 . . . . 1 3 4 4 2 3 4 . Disrupt 2 | . . . . . . . . . . . . . . . . . . . 2 . . . . . . . . . . . . Operators 8 | . . . . 1 . . . . . . . . . . . . 1 . 1 . . . . 1 1 1 1 1 . . . Skim 65 | . 5 . 5 5 5 . . . . . . 5 . . . . 6 . 5 . . . . 2 5 5 6 5 1 5 . Sabotage 4 | . . . . . . . . . . . . . . . . 4 . . . . . . . . . . . . . . . Fabricators 24 | . . . . . . . 3 . . . . . . . . . 6 . 4 . . . . 4 2 5 . . . . . Report 4 | . . . . . . . . . . . . . . . . . 1 . 1 . . . . 1 . 1 . . . . . Prioritize 17 | . . . . . . . 3 . . . . . . . . . 4 . 3 . . . . 2 2 3 . . . . . Liberate 1 | . . . . . . . . . . . . . . . . . 1 . . . . . . . . . . . . . . Haulers 2 | . . . . . . . . . . . . . . . . . . . . . . . . 1 . 1 . . . . . Repair Stations 10 | . . . . . . . 2 . . . . 1 1 . . . 1 . 1 . . . . . . . . . 2 2 . Recycling Units 18 | . . . . . 6 . . . . . . . . . . . 5 . 3 . . . . . . . . . 4 . . Monitor 1 | . . . . . . . . . . . . . . . . . . . . . . . . . . . . . 1 . . Reject 4 | . . . . . . . . . . . . . . . . . 2 . 1 . . . . . . . . . 1 . . Recyclers 3 | . . . . . . . . . . . . . . . . . 1 . 1 . . . . . . . . . 1 . . Mask 4 | . . . . . . . . . . . . . . . . . 2 . 1 . . . . . . . . . 1 . . Tunnel 6 | . . . . . 6 . . . . . . . . . . . . . . . . . . . . . . . . . . Scrapoids 10 | . . . . . . . 2 . . . . 1 1 . . . 1 . 1 . . . . . . . . . 2 2 . Scanalyzers 1 | . . . 1 . . . . . . . . . . . . . . . . . . . . . . . . . . . . Extract 1 | . . . 1 . . . . . . . . . . . . . . . . . . . . . . . . . . . . Garrison Access 3 | . . . . . . . . . . . . . . . . . . . 3 . . . . . . . . . . . . Broadcast 1 | . . . . . . . . . . . . . . . . . . . 1 . . . . . . . . . . . . Intercept 1 | . . . . . . . . . . . . . . . . . . . 1 . . . . . . . . . . . . Watchers 1 | . . . . . . . . . . . . . . . . . . . 1 . . . . . . . . . . . . Data Cores Recovered 7 | . . . . . . . . . . . . . . . . . . . . . . . . 1 . 1 3 1 1 . . Used 1 | . . . . . . . . . . . . . . . . . . . . . . . . . . . 1 . . . . Hacking Detections 150 | . 9 . 10 9 5 . 16 . . . . 12 4 . . 5 10 . 15 . . . 1 8 7 6 6 8 10 9 . Full Trace Events 10 | . . . 1 . . . 3 . . . . 1 . . . . 1 . . . . . . 2 . . . . 2 . . Feedback Events . | . . . . . . . . . . . . . . . . . . . . . . . . . . . . . . . . Feedback Blocked . | . . . . . . . . . . . . . . . . . . . . . . . . . . . . . . . . Robot Schematics Acquired 11 | . 2 . . 1 . . 1 . . 5 . . . . . . 1 . . . . . . 1 . . . . . . . Robots Built 5 | . . . . . . . 4 . . . . . . . . . . . . . . . . . 1 . . . . . . Authchips . | . . . . . . . . . . . . . . . . . . . . . . . . . . . . . . . . Time 280 | . . . . . . . 76 . . . . . . . . . . . . . . . . . 204 . . . . . . Total Robot Build Rating 15 | . . . . . . . 7 . . . . . . . . . . . . . . . . . 8 . . . . . . Part Schematics Acquired 101 | . 3 . 11 2 4 . 4 . . 13 . 4 2 . . . 23 . 11 . . 4 . 7 3 3 3 2 2 . . Parts Built 72 | . . . . . . . 10 . . . . 1 . . . . 19 . 6 . . . . 4 15 8 . . 9 . . Authchips 3 | . . . . . . . 2 . . . . . . . . . 1 . . . . . . . . . . . . . . Time 5107 | . . . . . . . 330 . . . . 64 . . . . 1204 . 656 . . . . 630 798 795 . . 630 . . Total Part Build Rating 507 | . . . . . . . 33 . . . . 8 . . . . 125 . 43 . . . . 33 121 69 . . 75 . . Parts Repaired 15 | . 1 . 1 1 . . . . . . . . . . . . 6 . 2 . . . . . 1 2 . . . 1 . Time 553 | . 13 . 32 50 . . . . . . . . . . . . 249 . 105 . . . . . 26 52 . . . 26 . Parts Recycled . | . . . . . . . . . . . . . . . . . . . . . . . . . . . . . . . . Recycled Matter . | . . . . . . . . . . . . . . . . . . . . . . . . . . . . . . . . Retrieved Matter . | . . . . . . . . . . . . . . . . . . . . . . . . . . . . . . . . Retrieved Components 10 | . . . . . . . . . . . . . . . . . . . . . . . . . . . . . . 10 . Parts Scanalyzed 27 | . . . 7 . . . 3 . . . . 3 . . . . 9 . 3 . . . . 1 . 1 . . . . . Part Schematics Acquired 27 | . . . 7 . . . 3 . . . . 3 . . . . 9 . 3 . . . . 1 . 1 . . . . . Parts Damaged 5 | . . . . . . . . . . . . 1 . . . . 3 . 1 . . . . . . . . . . . . Bothacking | -11 -10 -10 -9 -9 -9 -9 -6 -6 -6 -6 -5 -5 -5 -5 -5 -5 -4 -4 -4 -4 -4 -4 -3 -3 -3 -2 -2 -2 -1 -1 -1 ------------ Run | Yrd Mat Min Mat Sto Rec Scr Fac Low Low Dat Pro Fac Ext Cet Arc Hub Fac Was Fac Upp Upp Zhi Pro Res Tes Res Qua Sec Acc Com Ac0 Used RIF Installer . | . . . . . . . . . . . . . . . . . . . . . . . . . . . . . . . . Robots Hacked 15 | . . . . . . . 1 . . . . . 1 1 1 . 5 . . . . . . . 2 . . . . 4 . Non-combat 7 | . . . . . . . . . . . . . . . . . 5 . . . . . . . . . . . . 2 . Combat 8 | . . . . . . . 1 . . . . . 1 1 1 . . . . . . . . . 2 . . . . 2 . Robot Hacks Applied 17 | . . . . . . . 1 . . . . . 1 1 1 . 7 . . . . . . . 2 . . . . 4 . parse_system 12 | . . . . . . . 1 . . . . . 1 1 1 . 2 . . . . . . . 2 . . . . 4 . no_distress 2 | . . . . . . . . . . . . . . . . . 2 . . . . . . . . . . . . . . find_chute 3 | . . . . . . . . . . . . . . . . . 3 . . . . . . . . . . . . . . Relay Couplers Released 3 | . . . . . . . 3 . . . . . . . . . . . . . . . . . . . . . . . . Machine Destruction 3 | . . . . . . . 3 . . . . . . . . . . . . . . . . . . . . . . . . Fabnet Peak Effective % . | . . . . . . . . . . . . . . . . . . . . . . . . . . . . . . . . Robots Rewired 9 | . . . . . . . . 3 . . . . . . . . 4 . . . . . . . 2 . . . . . . Allies Hacked 2 | . . . . . . . 1 . . . . . . . . . . . . . . . . . . . . . 1 . . Hacks Repelled . | . . . . . . . . . . . . . . . . . . . . . . . . . . . . . . . . Allies | -11 -10 -10 -9 -9 -9 -9 -6 -6 -6 -6 -5 -5 -5 -5 -5 -5 -4 -4 -4 -4 -4 -4 -3 -3 -3 -2 -2 -2 -1 -1 -1 -------- Run | Yrd Mat Min Mat Sto Rec Scr Fac Low Low Dat Pro Fac Ext Cet Arc Hub Fac Was Fac Upp Upp Zhi Pro Res Tes Res Qua Sec Acc Com Ac0 Total Allies 146 | . . . . . . . 17 3 . . . 5 10 5 . . 9 1 6 . . . . . 3 1 . . 13 73 . Largest Group 42 | . . . . . . . 9 3 . . . 5 9 9 9 . 5 1 5 . . . . . 1 1 1 . 5 42 3 Highest-Rated Group 1751 | . . . . . . . 258 93 . . . 241 473 754 751 . 244 46 238 . . . . . 89 26 26 . 379 1751 474 Highest-Rated Ally 234 | . . . . . . . 93 31 . . . 50 159 159 159 . 50 46 50 . . . . . 89 26 26 . 135 234 234 Total Orders 10 | . . . . . . . 1 . . . . . . . 1 . 2 . . . . . . . 5 . . . . 1 . STAY 4 | . . . . . . . . . . . . . . . 1 . 1 . . . . . . . 1 . . . . 1 . FOLLOW 2 | . . . . . . . . . . . . . . . . . 1 . . . . . . . 1 . . . . . . DROP 1 | . . . . . . . 1 . . . . . . . . . . . . . . . . . . . . . . . . RETURN 3 | . . . . . . . . . . . . . . . . . . . . . . . . . 3 . . . . . . Ally Attacks 805 | . . . . . . . 93 19 . . . 12 25 75 52 . 90 7 22 . . . . . 40 . . . 60 260 50 Total Damage 22746 | . . . . . . . 1886 366 . . . 600 566 1965 1551 . 2441 178 372 . . . . . 1343 . . . 1734 6793 2951 Kills 97 | . . . . . . . 10 . . . . 5 3 10 4 . 14 . 2 . . . . . 6 . . . 8 28 7 Allies Corrupted 6 | . . . . . . . . . . . . . 1 . . . . . 1 . . . . . . . . . . 2 2 Allies Melted . | . . . . . . . . . . . . . . . . . . . . . . . . . . . . . . . . Intel | -11 -10 -10 -9 -9 -9 -9 -6 -6 -6 -6 -5 -5 -5 -5 -5 -5 -4 -4 -4 -4 -4 -4 -3 -3 -3 -2 -2 -2 -1 -1 -1 ------- Run | Yrd Mat Min Mat Sto Rec Scr Fac Low Low Dat Pro Fac Ext Cet Arc Hub Fac Was Fac Upp Upp Zhi Pro Res Tes Res Qua Sec Acc Com Ac0 Robot Analysis Total 28 | . 5 . 3 1 . . . . . . . 1 . . . . 1 . 1 . . 4 . 6 1 . 2 2 1 . . Derelict Logs Recovered 6 | . . 1 . . . . . 1 2 . 1 . . . . . . . . 1 . . . . . . . . . . . Drone Launches 6 | . . . . . . . 2 . . . . . . . . . . . . . . . . . 4 . . . . . . Drone Recoveries 4 | . . . . . . . 1 . . . . . . . . . . . . . . . . . 3 . . . . . . Exploration | -11 -10 -10 -9 -9 -9 -9 -6 -6 -6 -6 -5 -5 -5 -5 -5 -5 -4 -4 -4 -4 -4 -4 -3 -3 -3 -2 -2 -2 -1 -1 -1 ------------- Run | Yrd Mat Min Mat Sto Rec Scr Fac Low Low Dat Pro Fac Ext Cet Arc Hub Fac Was Fac Upp Upp Zhi Pro Res Tes Res Qua Sec Acc Com Ac0 Turns Passed 33932 | 120 1535 1012 1289 1056 859 1481 991 386 321 28 153 357 597 397 1738 236 2742 27 1767 284 305 37 355 848 1920 1134 930 1151 2032 6712 1132 Spaces Moved 34228 | 58 654 515 984 587 680 2152 1759 520 608 95 629 878 588 278 258 440 4108 94 2964 548 546 135 784 1359 1706 1385 985 1782 2035 3893 221 Core 127 | 3 . . . . . . . . . . . . . . 40 . 25 . . . . . . . 45 . . . . . 14 Treads 2858 | 55 654 515 21 . . . . . . . . . . . . . . . . . . . . . . . . . . 1406 207 Legs . | . . . . . . . . . . . . . . . . . . . . . . . . . . . . . . . . Wheels . | . . . . . . . . . . . . . . . . . . . . . . . . . . . . . . . . Hover 14198 | . . . 963 587 680 2152 77 . . . . . . . . . . . . . . . . . 1065 1385 985 1782 2035 2487 . Flight 17045 | . . . . . . . 1682 520 608 95 629 878 588 278 218 440 4083 94 2964 548 546 135 784 1359 596 . . . . . . Fastest Speed 5 | 50 160 160 52 58 58 58 20 20 20 20 23 20 27 27 27 27 25 25 20 20 20 20 20 5 18 45 45 45 45 45 50 Average Speed 52 | 154 160 160 57 58 58 67 23 23 26 22 23 23 27 27 46 27 28 25 24 20 20 20 20 19 41 45 45 45 46 134 233 Slowest Speed 250 | 160 160 160 180 58 58 121 124 94 92 23 23 27 100 99 150 100 200 25 80 20 20 20 20 80 200 45 45 45 148 250 246 Overloaded Moves 3 | . . . . . . . . . . . . . . . . . . . . . . . . 3 . . . . . . . Propulsion Burnouts . | . . . . . . . . . . . . . . . . . . . . . . . . . . . . . . . . Robots Hopped 90 | . . . . . . . 10 . 1 3 1 3 3 . . 14 21 . 14 1 . . . 6 8 . . . . 5 . Cave-ins Triggered . | . . . . . . . . . . . . . . . . . . . . . . . . . . . . . . . . Teleports 2 | . . . . . . . . . . . . . . . . . . . . . . . . . . . . . . 1 1 Exploration Rate (%) 65 | 5 94 96 72 91 98 90 50 62 79 80 87 25 65 66 89 56 54 87 54 72 69 60 88 34 88 20 82 66 40 69 4 Regions Visited 31 Branch Regions 21 Pre-discovered Areas 23 | . 1 1 . . 9 . . . 1 1 1 . . . . . 2 . 1 . . 3 . . . . 1 1 . 1 . Known Exits Taken 29 | 1 1 1 1 1 1 1 1 1 1 1 1 1 1 1 1 1 . . 1 1 1 1 1 1 1 1 1 1 1 1 . Unknown Exits Taken . | . . . . . . . . . . . . . . . . . . . . . . . . . . . . . . . . Scrap Searched 30 | . . 1 . . . 10 . 7 4 . 1 . . . . . . . . 3 2 . 2 . . . . . . . . Spaces Dug 186 | . . . . . . . 6 1 . . . 3 9 . . 7 28 . 37 4 4 . 4 10 11 20 8 13 13 7 1 Terrain Destroyed 955 | . . . . . . . 6 2 . . . 3 15 . . 179 69 . 48 21 5 . 46 10 37 22 8 19 18 39 408 Melee 119 | . . . . . . . 6 . . . . 3 3 . . 5 25 . 27 3 1 . 3 6 8 9 4 4 5 7 . Projectile 108 | . . . . . . . . . . . . . 12 . . 3 3 . 8 2 4 . 2 4 2 13 4 15 13 21 2 AOE 709 | . . . . . . . . . . . . . . . . 171 41 . . 16 . . 41 . 23 . . . . 11 406 Terrain Rammed . | . . . . . . . . . . . . . . . . . . . . . . . . . . . . . . . . Walls Destroyed . | . . . . . . . . . . . . . . . . . . . . . . . . . . . . . . . . Machines Disabled . | . . . . . . . . . . . . . . . . . . . . . . . . . . . . . . . . Actions | -11 -10 -10 -9 -9 -9 -9 -6 -6 -6 -6 -5 -5 -5 -5 -5 -5 -4 -4 -4 -4 -4 -4 -3 -3 -3 -2 -2 -2 -1 -1 -1 --------- Run | Yrd Mat Min Mat Sto Rec Scr Fac Low Low Dat Pro Fac Ext Cet Arc Hub Fac Was Fac Upp Upp Zhi Pro Res Tes Res Qua Sec Acc Com Ac0 Total 48222 | 76 1055 639 1542 1225 1135 2181 2245 781 759 95 634 1010 968 581 1846 518 5510 96 3888 714 735 145 965 1904 2761 1826 1429 2057 3032 5155 715 Wait 11025 | 2 342 85 389 547 434 . 240 237 130 . . 89 289 265 1549 70 1104 . 770 147 172 . 158 491 758 369 367 186 755 712 368 Move 34034 | 57 653 514 983 586 679 2151 1738 519 605 89 626 871 582 277 257 416 4069 93 2938 545 545 134 783 1347 1690 1384 984 1781 2034 3883 221 Hop 74 | . . . . . . . 10 . 1 2 1 3 2 . . 9 18 . 11 1 . . . 5 7 . . . . 4 . Pick Up 240 | 5 7 1 20 4 3 9 12 . 4 . 2 7 7 2 4 . 26 1 13 . 1 2 . 6 20 7 6 5 16 32 18 Fast Attach 333 | 7 1 1 10 7 3 5 24 1 2 . 1 11 6 7 1 2 25 1 9 1 . 4 . 7 55 2 11 10 44 70 5 Attach 136 | . 1 . 3 . 1 3 14 1 1 2 1 5 1 1 4 . 14 . 11 5 5 . 5 6 16 2 1 3 3 24 3 Detach 79 | . . . 1 2 . . 8 2 1 . 1 1 . 1 2 . 9 . 5 6 4 . 5 5 13 . . . 1 10 2 Swap 239 | . . . 8 5 2 2 20 1 4 1 . 4 13 4 1 4 51 . 23 . 1 . . 2 14 7 12 13 26 10 11 Drop 498 | . 1 2 29 13 7 10 28 . 5 . 1 9 11 8 4 2 46 1 23 2 1 5 . 12 70 8 17 8 59 98 18 Fire 643 | 5 50 36 99 46 6 . 15 3 . . . . 19 15 . 4 7 . 30 3 4 . 11 4 54 13 9 22 14 105 69 Melee 585 | . . . . . . . 42 . 6 1 1 10 20 1 24 11 96 . 52 4 2 . 3 19 62 34 22 29 67 79 . Ram . | . . . . . . . . . . . . . . . . . . . . . . . . . . . . . . . . Kick . | . . . . . . . . . . . . . . . . . . . . . . . . . . . . . . . . Crush 1 | . . . . . . . . . . . . . . . . . . . . . . . . . . . . . . 1 . Escape Stasis 228 | . . . . 13 . . 78 . . . . . 18 . . . . . . . . . . . . . . . 13 106 . Rewire 49 | . . . . . . . . 17 . . . . . . . . 9 . . . . . . . 2 . . . . 21 . Trap 58 | . . . . 2 . 1 16 . . . . . . . . . 36 . 3 . . . . . . . . . . . . Miscellaneous . | . . . . . . . . . . . . . . . . . . . . . . . . . . . . . . . . Route ------- -11/Scrapyard -10/Materials (discovered 6 exits: *Mat x3 / *Min x2 / Sub) -10/Mines (discovered 2 exits: *Mat x2) -9/Materials (discovered 5 exits: *Mat x3 / Min / *Sto) -9/Storage (discovered 2 exits: *Mat / *Rec) -9/Recycling (discovered 2 exits: *Fac / *Scr) -9/Scraptown (discovered 2 exits: *Fac x2) -6/Factory (discovered 2 exits: *Low x2) -6/Lower Caves -6/Lower Caves (discovered 2 exits: *Fac / *Dat) -6/Data Miner -5/Proximity Caves -5/Factory (discovered 8 exits: *Fac x4 / Upp x2 / *Ext x2) -5/Extension (discovered 2 exits: *Fac / *Cet) -5/Cetus (discovered 2 exits: *Fac / *Arc) -5/Archives (discovered 3 exits: *Fac / *Hub x2) -5/Hub_04(d) (discovered 2 exits: *Fac x2) -4/Factory (discovered 7 exits: Res x4 / *Upp x2 / Arm) -4/Waste -4/Factory (discovered 7 exits: *Res x4 / *Upp x2 / Arm) -4/Upper Caves -4/Upper Caves (discovered 2 exits: *Res / *Zhi) -4/Zhirov -3/Proximity Caves -3/Research (discovered 4 exits: *Res x2 / *Tes x2) -3/Testing -2/Research (discovered 5 exits: Acc x3 / *Qua x2) -2/Quarantine (discovered 2 exits: *Acc / *Sec) -2/Section 7 -1/Access -1/Command (discovered 3 exits: *Sur x2 / *Ac0) -1/Access_0 (discovered 1 exit: *Sur) History --------- Turn | Location | Event 6 | -11/Scrapyard | Identified exit to Materials 6 | -11/Scrapyard | Discovered exit to Materials (range 15) 121 | -11/Scrapyard | Entered Materials 121 | -10/Materials | Evolved 1 slot: Utility x1 313 | -10/Materials | Build established: Hacker-Mutant 438 | -10/Materials | Identified exit to Materials 438 | -10/Materials | Discovered exit to Materials (range 14) 574 | -10/Materials | Identified exit to Mines 574 | -10/Materials | Discovered exit to Mines (range 15) 745 | -10/Materials | Learned location of 1 exit from Storage 764 | -10/Materials | Identified exit to Subcaves 774 | -10/Materials | Learned Storage trap positions 775 | -10/Materials | Learned location of 1 exit from Recycling 776 | -10/Materials | Loaded intel: 2 recycling unit locations 872 | -10/Materials | Discovered exit to Mines (range 14) 1261 | -10/Materials | Repaired Lgt. Treads 1656 | -10/Materials | Entered Mines 1672 | -10/Mines | Assembled infested the area 2003 | -10/Mines | Core integrity fell below 50% 2070 | -10/Mines | Learned location of Zion (-7) 2668 | -10/Mines | Entered Materials 2668 | -9/Materials | Evolved 2 slots: Propulsion x1, Utility x1 2669 | -9/Materials | Identified exit to Materials 3389 | -9/Materials | Identified exit to Mines 3389 | -9/Materials | Identified exit to Storage 3432 | -9/Materials | Repaired Imp. Hover Unit 3588 | -9/Materials | Learned Storage emergency access door positions 3668 | -9/Materials | Learned Storage emergency access door positions 3883 | -9/Materials | Learned Storage security intel 3957 | -9/Materials | Entered Storage 3959 | -9/Storage | Identified exit to Recycling 3960 | -9/Storage | Loaded intel: 18 trap records 4016 | -9/Storage | Repaired Cmb. Airjet 4417 | -9/Storage | Found Prototype Launcher 4417 | -9/Storage | Identified Scatter Rocket Array 4475 | -9/Storage | Met 01-MTF 4607 | -9/Storage | Learned location of 1 exit from Storage 4631 | -9/Storage | Found Prototype Launcher 4631 | -9/Storage | Identified Gui. Missile Launcher 4782 | -9/Storage | Learned location of 2 exits from Materials 4996 | -9/Storage | Learned Materials emergency access door positions 5013 | -9/Storage | Entered Recycling 5013 | -9/Recycling | Accompanied by 1 ally (01-MTF) 5014 | -9/Recycling | Identified exit to Factory 5437 | -9/Recycling | Identified exit to Scraptown 5679 | -9/Recycling | Learned location of 1 exit from Recycling 5720 | -9/Recycling | Learned Storage stockpile data 5801 | -9/Recycling | Scanned before Scraplab entrance 5844 | -9/Recycling | Found Prototype Energy Gun 5844 | -9/Recycling | Identified KN-7UR's Autopenetrator 5854 | -9/Recycling | Entered Scraplab 5872 | -9/Recycling | Entered Scraptown 5872 | -9/Scraptown | System corruption cleaned by C-Scrubber 5910 | -9/Scraptown | Heard Great Nut preacher, LISTEN AND RECITE! 6007 | -9/Scraptown | Visited UFD Registry 6007 | -9/Scraptown | Registered with UFD as "Microframe" 6022 | -9/Scraptown | Visited Science Testing Area 6031 | -9/Scraptown | Visited Scrap Suit Storage 6042 | -9/Scraptown | Visited Scrapoid Pod Storage 6056 | -9/Scraptown | Visited Abandonware Association 6063 | -9/Scraptown | Learned abandonware demo "OVRCLOCK.EXE" 6064 | -9/Scraptown | Learned abandonware demo "REVENGE.EXE" 6076 | -9/Scraptown | Visited Infowarlord's Domain 6117 | -9/Scraptown | Visited LU-1G1's Boring Crew 6128 | -9/Scraptown | Visited Junk Repository 6149 | -9/Scraptown | Visited Science Guys 6170 | -9/Scraptown | Visited Junk Repository 6209 | -9/Scraptown | Visited Assassins FH 6221 | -9/Scraptown | Visited SPCMW 6240 | -9/Scraptown | Visited Bundlers 6275 | -9/Scraptown | Visited Comm Corps 6302 | -9/Scraptown | Visited Awakened 6316 | -9/Scraptown | Visited The Evicted 6342 | -9/Scraptown | Visited Cyclists 6346 | -9/Scraptown | Entered Cyclist Reading Room 6388 | -9/Scraptown | Identified exit to Factory 6388 | -9/Scraptown | Discovered exit to Factory (range 11) 6728 | -9/Scraptown | Warned about trapping Scraptown 6773 | -9/Scraptown | Core integrity fell below 50% 6776 | -9/Scraptown | Found Master Drone Bay 6803 | -9/Scraptown | Lost 5 allies 6816 | -9/Scraptown | Discovered exit to Factory (range 3) 6817 | -9/Scraptown | System corruption cleaned by C-Scrubber 6878 | -9/Scraptown | Found Exp. Sensor Array 7001 | -9/Scraptown | Found Scrapoid Pod 7353 | -9/Scraptown | Entered Factory 7353 | -6/Factory | Evolved 6 slots: Power x1, Propulsion x3, Utility x2 7422 | -6/Factory | Fabricated Imp. VTOL Module? 7563 | -6/Factory | Fabricated Imp. VTOL Module? 7568 | -6/Factory | Fabricated Trap Extractor? 7615 | -6/Factory | Fabricated Transport Network Coupler (x2) 7670 | -6/Factory | Fabricated Cld. Ion Engine (x1) 7751 | -6/Factory | Scrapoids reinforcements arrived? 7764 | -6/Factory | Build established: Hacker-Sprinter 7780 | -6/Factory | Identified exit to Lower Caves 7835 | -6/Factory | Scrapoids reinforcements arrived? 7916 | -6/Factory | Fabricated Linear Accelerator? 7919 | -6/Factory | Fabricated System Shield? 7941 | -6/Factory | Lost 3 allies 7981 | -6/Factory | Fabricated O-16 Technician? 8015 | -6/Factory | Lost 5 allies 8232 | -6/Factory | Master Drone dominated G-50 Soldier. 8238 | -6/Factory | Cargo convoy interrupted 8243 | -6/Factory | Fabricated B-36 Bruiser (x3) 8252 | -6/Factory | Master Drone dominated A-27 Freighter. 8259 | -6/Factory | Master Drone dominated X-62 Marksman. 8264 | -6/Factory | Lost 4 parts (1p2u1w) 8291 | -6/Factory | Lost 5 allies 8344 | -6/Factory | Entered Lower Caves 8369 | -6/Lower Caves | Attacked by a delusional Derelict stockpiling Unaware 8513 | -6/Lower Caves | Identified exit to Lower Caves 8513 | -6/Lower Caves | Discovered exit to Lower Caves (range 8) 8543 | -6/Lower Caves | Spotted B-75 Beast 8616 | -6/Lower Caves | Lost 3 allies 8696 | -6/Lower Caves | Build established: Hacker-Scout 8730 | -6/Lower Caves | Entered another Lower Caves area 8746 | -6/Lower Caves | Identified exit to Factory 8746 | -6/Lower Caves | Discovered exit to Factory (range 14) 8757 | -6/Lower Caves | Encountered a Warlord checkpoint 9007 | -6/Lower Caves | Identified exit to Data Miner 9007 | -6/Lower Caves | Discovered exit to Data Miner (range 12) 9023 | -6/Lower Caves | Learned 8 Factory zone layouts 9037 | -6/Lower Caves | Found Alien Artifact 9051 | -6/Lower Caves | Entered Data Miner 9051 | -6/Data Miner | Identified exit to Proximity Caves 9051 | -6/Data Miner | Discovered exit to Proximity Caves (range 6) 9056 | -6/Data Miner | Met Data Miner 9061 | -6/Data Miner | Learned location of Section 7 (-2) 9061 | -6/Data Miner | Acquired the access code to Warlord's prototype stash 9064 | -6/Data Miner | Received God Mode back door access code from Data Miner 9067 | -6/Data Miner | Identified Dimensional Node Initializer 9067 | -6/Data Miner | Initialized slip node 9070 | -6/Data Miner | Data Conduit disabled 9079 | -6/Data Miner | Entered Proximity Caves 9100 | -5/Proximity Caves | Build established: Trapper-Scout 9101 | -5/Proximity Caves | Lost 3 parts (1p1n1u) 9189 | -5/Proximity Caves | Spotter reported a threat 9189 | -5/Proximity Caves | Spotter reported a threat 9219 | -5/Proximity Caves | Discovered exit to Factory (range 16) 9232 | -5/Proximity Caves | Entered Factory 9232 | -5/Factory | Evolved 2 slots: Utility x2 9233 | -5/Factory | Identified exit to Upper Caves 9323 | -5/Factory | Identified exit to Extension 9370 | -5/Factory | Identified exit to Factory 9384 | -5/Factory | Scrapoids reinforcements arrived? 9501 | -5/Factory | Lost 4 allies 9502 | -5/Factory | Fabricated Impulse Thruster Array (x1) 9527 | -5/Factory | Learned 4 Factory zone layouts 9532 | -5/Factory | Search patrols dispatched 9543 | -5/Factory | Build established: Hacker-Scout 9589 | -5/Factory | Entered Extension 9624 | -5/Extension | Rescued a captive Derelict 9627 | -5/Extension | Rescued a captive Derelict 9628 | -5/Extension | Rescued a captive Derelict 9986 | -5/Extension | Rescued A7 10010 | -5/Extension | Rescued a captive Derelict 10039 | -5/Extension | Scrapoids reinforcements arrived? 10141 | -5/Extension | Discovered exit to Factory (range 10) 10142 | -5/Extension | Identified exit to Cetus 10142 | -5/Extension | Discovered exit to Cetus (range 6) 10186 | -5/Extension | Entered Cetus 10186 | -5/Cetus | Accompanied by 7 allies (A7) 10191 | -5/Cetus | Acquired a Cetus Manufacturing Module code from A7 10208 | -5/Cetus | Spotted Cetus Guard 10208 | -5/Cetus | Spotted Cetus Guard 10208 | -5/Cetus | Allies destroyed Cetus Guard 10209 | -5/Cetus | Spotted Cetus Guard 10209 | -5/Cetus | Spotted Cetus Guard 10211 | -5/Cetus | Allies destroyed Cetus Guard 10219 | -5/Cetus | Allies destroyed Cetus Guard 10229 | -5/Cetus | Destroyed Cetus Guard 10262 | -5/Cetus | Lost 3 allies 10286 | -5/Cetus | Escorted A7 to Cetus Mainframe 10289 | -5/Cetus | Started Cetus Manufacturing Module 10293 | -5/Cetus | Identified exit to Archives 10293 | -5/Cetus | Discovered exit to Archives (range 15) 10314 | -5/Cetus | Manufactured an Enhanced Grunt 10339 | -5/Cetus | Manufactured an Enhanced Grunt 10364 | -5/Cetus | Manufactured an Enhanced Grunt 10389 | -5/Cetus | Manufactured an Enhanced Grunt 10414 | -5/Cetus | Manufactured an Enhanced Grunt 10495 | -5/Cetus | Spotted Cetus Guard 10495 | -5/Cetus | Spotted Cetus Guard 10496 | -5/Cetus | Build established: Hacker-Sprinter 10501 | -5/Cetus | Spotted Cetus Guard 10501 | -5/Cetus | Spotted Cetus Guard 10505 | -5/Cetus | Allies destroyed Cetus Guard 10514 | -5/Cetus | Allies destroyed Cetus Guard 10516 | -5/Cetus | Allies destroyed Cetus Guard 10523 | -5/Cetus | Allies destroyed Cetus Guard 10525 | -5/Cetus | Discovered exit to Factory (range 15) 10527 | -5/Cetus | Met Revision 17 10583 | -5/Cetus | Entered Archives 10583 | -5/Archives | Accompanied by 9 allies (A7) 10588 | -5/Archives | Received a hacking code to weaken MAIN.C 10656 | -5/Archives | Discovered exit to Factory (range 16) 10691 | -5/Archives | Identified exit to Hub_04(d) 10691 | -5/Archives | Discovered exit to Hub_04(d) (range 15) 10700 | -5/Archives | Discovered exit to Hub_04(d) (range 15) 11065 | -5/Archives | Build established: Hacker-Assassin 12321 | -5/Archives | Entered Hub_04(d) 12321 | -5/Hub_04(d) | Discovered exit to Factory (range 11) 12513 | -5/Hub_04(d) | Discovered exit to Factory (range 13) 12520 | -5/Hub_04(d) | Network Hub disabled 12520 | -5/Hub_04(d) | Network Hub disabled 12538 | -5/Hub_04(d) | Spotted Lightning 12547 | -5/Hub_04(d) | Spotted Lightning 12551 | -5/Hub_04(d) | Network Hub disabled 12557 | -5/Hub_04(d) | Entered Factory 12557 | -4/Factory | Evolved 2 slots: Utility x2 12558 | -4/Factory | Identified exit to Research 12710 | -4/Factory | Identified exit to Upper Caves 12710 | -4/Factory | Identified exit to Armory 12911 | -4/Factory | Spotted B-86 Titan 13037 | -4/Factory | Build established: Wizard-Scout 13050 | -4/Factory | Learned 4 Factory zone layouts 13159 | -4/Factory | Loaded intel: 92 trap records 13160 | -4/Factory | Learned Quarantine emergency access door positions 13161 | -4/Factory | Learned Testing terminal intel 13177 | -4/Factory | Learned location of 2 exits from Research 13199 | -4/Factory | Learned Factory stockpile data 13278 | -4/Factory | Fabricated Exp. Hacking Suite? 13457 | -4/Factory | Fabricated Q-thruster (x2) 13464 | -4/Factory | Cargo convoy interrupted 13491 | -4/Factory | Fabricated Exp. Hacking Suite (x1) 13559 | -4/Factory | Fabricated Exp. Signal Interpreter (x1) 13581 | -4/Factory | Build established: Wizard-Ninja 13592 | -4/Factory | Fabricated Exp. Hacking Suite (x1) 13594 | -4/Factory | Found Exp. Terrain Scan Processor 13598 | -4/Factory | Found Prototype Protection 13598 | -4/Factory | Identified Centrium Heavy Armor Plating 13638 | -4/Factory | Fabricated Biomechanical Wings (x1) 13758 | -4/Factory | Found Prototype Device 13758 | -4/Factory | Identified Exp. Thermal Defense Suite 13761 | -4/Factory | Found Prototype Device 13761 | -4/Factory | Identified Exp. Force Field 13779 | -4/Factory | Found Exp. Force Field 14075 | -4/Factory | Fabricated Lrn. Terrain Scanner (x2) 14139 | -4/Factory | Found Prototype Processor 14139 | -4/Factory | Identified Exp. Melee Analysis Suite 14148 | -4/Factory | Fabricated Exp. Utility Shielding (x1) 14168 | -4/Factory | Repaired Exp. Sensor Array? 14183 | -4/Factory | Repaired Biomechanical Wings? 14200 | -4/Factory | Fabricated Exp. Hacking Suite (x1) 14220 | -4/Factory | Scrapoids reinforcements arrived? 14226 | -4/Factory | Found Prototype Launcher 14226 | -4/Factory | Identified Mni. Smartbomb Launcher 14308 | -4/Factory | Repaired Q-thruster 14343 | -4/Factory | Repaired Impulse Thruster Array 14391 | -4/Factory | Fabricated Biomechanical Wings (x1) 14397 | -4/Factory | Repaired Adv. Datajack 14472 | -4/Factory | Fabricated Biomechanical Wings (x1) 14561 | -4/Factory | Fabricated Exp. Hacking Suite (x1) 14610 | -4/Factory | Repaired Broken Mni. Smartbomb Launcher 14846 | -4/Factory | Fabricated Com. Linear Accelerator (x1) 14939 | -4/Factory | Fabricated Adv. Gravity Neutralizer (x1) 15033 | -4/Factory | Fabricated Molecular Scythe (x1) 15112 | -4/Factory | Fabricated Biomechanical Wings (x1) 15214 | -4/Factory | Fabricated Biomechanical Wings (x1) 15240 | -4/Factory | Build established: Wizard-Scout 15299 | -4/Factory | Sucked down chute 15299 | -4/Factory | Entered Waste 15300 | -4/Waste | Met a frightened Derelict 15301 | -4/Waste | Spotted C-40 Crusher 15302 | -4/Waste | Spotted C-40 Crusher 15312 | -4/Waste | Spotted C-40 Crusher 15314 | -4/Waste | EMP discharged 15321 | -4/Waste | Identified exit to Factory 15321 | -4/Waste | Discovered exit to Factory (range 13) 15321 | -4/Waste | Spotted C-40 Crusher 15326 | -4/Waste | Entered Factory 15382 | -4/Factory | Repaired Broken Cmb. Linear Gravjet? 15453 | -4/Factory | Identified exit to DSF 15535 | -4/Factory | Fabricated Biomechanical Wings (x1) 15630 | -4/Factory | Fabricated Exp. System Shield (x1) 15924 | -4/Factory | Spotted B-86 Titan 16037 | -4/Factory | Fabricated Imp. Quantum Reactor (x1) 16061 | -4/Factory | Fabricated Lgt. Regenerative Plating (x1) 16215 | -4/Factory | Learned location of 1 exit from Upper Caves 16247 | -4/Factory | Spotted B-86 Titan 16251 | -4/Factory | Learned 8 Factory zone layouts 16276 | -4/Factory | Learned location of Armory (-4) 16292 | -4/Factory | Learned Armory stockpile data 16300 | -4/Factory | Learned Research interactive machine intel 16302 | -4/Factory | Learned 4 Proximity Caves zone layouts 16310 | -4/Factory | Learned Research emergency access door positions 16326 | -4/Factory | Learned 2 Upper Caves zone layouts 16344 | -4/Factory | Fabricated Imp. Quantum Reactor (x1) 16350 | -4/Factory | Learned location of 1 exit from Armory 16638 | -4/Factory | Cargo convoy interrupted 16708 | -4/Factory | Repaired Centrium Medium Armor Plating 16868 | -4/Factory | Scrapoids reinforcements arrived? 17041 | -4/Factory | Fabricated Quantum Shading Machine (x1) 17093 | -4/Factory | Entered Upper Caves 17094 | -4/Upper Caves | Identified exit to Upper Caves 17257 | -4/Upper Caves | Acquired the password to a Derelict Tinkerer's latest research 17260 | -4/Upper Caves | Found Prototype Special Weapon 17260 | -4/Upper Caves | Identified Molecular Deconstructor 17302 | -4/Upper Caves | Learned 4 Research zone layouts 17377 | -4/Upper Caves | Entered another Upper Caves area 17391 | -4/Upper Caves | Discovered exit to Research (range 24) 17670 | -4/Upper Caves | Identified exit to Zhirov 17670 | -4/Upper Caves | Discovered exit to Zhirov (range 22) 17682 | -4/Upper Caves | Entered Zhirov 17682 | -4/Zhirov | Identified exit to Proximity Caves 17682 | -4/Zhirov | Discovered exit to Proximity Caves (range 3) 17686 | -4/Zhirov | Met Zhirov 17690 | -4/Zhirov | Learned location of Testing (-3) 17690 | -4/Zhirov | Learned location of Command (-1) 17692 | -4/Zhirov | Zhirov requested help retrieving the SGEMP Prototype 17696 | -4/Zhirov | Found Alien Artifact 17696 | -4/Zhirov | Identified Integrated Dissipator 17696 | -4/Zhirov | Installed Integrated Dissipator, increased core heat dissipation (+20) 17711 | -4/Zhirov | Found Alien Artifact 17719 | -4/Zhirov | Entered Proximity Caves 17841 | -3/Proximity Caves | Discovered exit to Research (range 21) 17940 | -3/Proximity Caves | Received a Behemoth hack from an annoying Tinkerer 18041 | -3/Proximity Caves | Learned location of 1 exit from Factory 18041 | -3/Proximity Caves | Learned Research trap positions 18074 | -3/Proximity Caves | Entered Research 18074 | -3/Research | Evolved 2 slots: Weapon x2 18075 | -3/Research | Identified exit to Research 18077 | -3/Research | Loaded intel: 54 trap records 18079 | -3/Research | Loaded intel: 45 interactive machine locations 18131 | -3/Research | Identified Transdimensional Reconstructor 18274 | -3/Research | Revision forces began assault on 0b10 18338 | -3/Research | Identified exit to Testing 18347 | -3/Research | Fabricated Cld. Q-thruster (x1) 18392 | -3/Research | Met up with Revision 17++ 18504 | -3/Research | Fabricated Exp. Matter Compressor (x1) 18764 | -3/Research | Fabricated Nanosword (x1) 18774 | -3/Research | Research terminal network offline 18867 | -3/Research | Fabricated Exp. Matter Compressor (x1) 18922 | -3/Research | Entered Testing 18923 | -3/Testing | Loaded intel: 12 terminal locations 18932 | -3/Testing | Found Prototype Energy Gun 18932 | -3/Testing | Identified Hyp. EM Gauss Rifle 18970 | -3/Testing | Found Prototype Energy Cannon 18970 | -3/Testing | Identified Cld. Nova Cannon 18987 | -3/Testing | Found Prototype Energy Cannon 18987 | -3/Testing | Identified Imp. Potential Cannon 18993 | -3/Testing | Found Prototype Energy Cannon 18993 | -3/Testing | Identified Potential Cannon 19008 | -3/Testing | Found Prototype Energy Cannon 19008 | -3/Testing | Identified Disintegrator 19059 | -3/Testing | Found Prototype Hackware 19059 | -3/Testing | Identified Ghost Barrier 19067 | -3/Testing | Found Prototype Device 19067 | -3/Testing | Identified 2N-1CE's Frost Array 19097 | -3/Testing | Found Prototype Device 19097 | -3/Testing | Identified Adv. Kinecellerator 19142 | -3/Testing | Found Prototype Protection 19142 | -3/Testing | Identified SHELL Armor 19168 | -3/Testing | Found Prototype Energy Gun 19168 | -3/Testing | Identified Warp Gun 19184 | -3/Testing | Fabricated Cmb. Linear Gravjet (x2) 19207 | -3/Testing | Fabricated Cmb. Linear Gravjet (x2) 19219 | -3/Testing | Fabricated C-55 Analyst? 19235 | -3/Testing | Fabricated Cmb. Linear Gravjet? 19249 | -3/Testing | Repaired Exp. Utility Shielding 19349 | -3/Testing | Fabricated Hcp. Storage Unit (x1) 19423 | -3/Testing | Fabricated Cmb. Linear Gravjet (x2) 19540 | -3/Testing | Fabricated Zero-point Reactor (x1) 19635 | -3/Testing | Fabricated Assault Drone Bay? 19755 | -3/Testing | Spotted Alpha 7 19761 | -3/Testing | Spotted Striker 19779 | -3/Testing | Rewired Striker 19787 | -3/Testing | Fabricated Nanosword? 19795 | -3/Testing | Allies destroyed Alpha 7 19808 | -3/Testing | Found Prototype Ballistic Gun 19808 | -3/Testing | Identified Multirail 19924 | -3/Testing | Stole the SGEMP Prototype 19991 | -3/Testing | Build established: Wizard-Skirmisher 20119 | -3/Testing | Fabricated Exp. EM Disruption Field (x1) 20221 | -3/Testing | Fabricated Nanosword? 20376 | -3/Testing | Fabricated Nanosword? 20445 | -3/Testing | Build established: Machinist-Mutant 20643 | -3/Testing | Learned Research trap positions 20709 | -3/Testing | Learned 4 Access zone layouts 20765 | -3/Testing | Learned 4 Research zone layouts 20775 | -3/Testing | Spotted PP-9A6NNLQIBC 20804 | -3/Testing | Destroyed PP-9A6NNLQIBC 20813 | -3/Testing | Learned location of 1 exit from Research 20842 | -3/Testing | Entered Research 20842 | -2/Research | Evolved 2 slots: Weapon x2 20843 | -2/Research | Identified exit to Access 20845 | -2/Research | Loaded intel: 87 trap records 20914 | -2/Research | Found Exp. System Shield 20964 | -2/Research | Repaired Exp. Utility Shielding 20993 | -2/Research | Repaired Exp. Utility Shielding 21018 | -2/Research | Fabricated Nanosword (x1) 21037 | -2/Research | Identified exit to Quarantine 21037 | -2/Research | Discovered exit to Quarantine (range 14) 21122 | -2/Research | Fabricated Nanosword (x1) 21177 | -2/Research | Build established: Machinist-Ninja 21325 | -2/Research | Fabricated Zero-point Reactor (x1) 21479 | -2/Research | Fabricated Femtoactuators (x1) 21498 | -2/Research | Fabricated Exp. Terrain Scanner (x1) 21537 | -2/Research | Fabricated Zero-point Reactor (x1) 21595 | -2/Research | Fabricated Exp. Actuator Array (x1) 21681 | -2/Research | Fabricated Exp. Reaction Control System (x1) 21899 | -2/Research | Learned 12 Access zone layouts 21940 | -2/Research | Learned location of 2 exits from Research 21970 | -2/Research | Learned 4 Access zone layouts 21976 | -2/Research | Entered Quarantine 21976 | -2/Quarantine | Accompanied by 1 ally 21997 | -2/Quarantine | Found Alien Artifact 22006 | -2/Quarantine | Identified Subatomic Replicator 22033 | -2/Quarantine | Used Subatomic Replicator to create Alien Artifact 22037 | -2/Quarantine | Found Alien Reactor 22037 | -2/Quarantine | Identified Matter Drive 22087 | -2/Quarantine | Found Alien Artifact 22101 | -2/Quarantine | Identified Phase Redirector 22101 | -2/Quarantine | Identified Supercharged TR 22155 | -2/Quarantine | Found Alien Artifact 22155 | -2/Quarantine | Identified Phase Armor 22176 | -2/Quarantine | Found Alien Artifact 22208 | -2/Quarantine | Learned 8 Research zone layouts 22245 | -2/Quarantine | Identified Core Reset Matrix 22262 | -2/Quarantine | Learned location of 2 exits from Research 22292 | -2/Quarantine | Found Alien Slashing Weapon 22292 | -2/Quarantine | Identified Sigix Broadsword 22362 | -2/Quarantine | Identified exit to Section 7 22373 | -2/Quarantine | Found Alien Energy Cannon 22373 | -2/Quarantine | Identified Core Cannon 22392 | -2/Quarantine | Learned Research fabricator intel 22410 | -2/Quarantine | Found Alien Impact Weapon 22410 | -2/Quarantine | Identified Core Stripper 22419 | -2/Quarantine | Learned Access emergency access door positions 22420 | -2/Quarantine | Learned 4 Research zone layouts 22431 | -2/Quarantine | Learned Research fabricator intel 22481 | -2/Quarantine | Learned Section 7 trap positions 22872 | -2/Quarantine | Spotted Fortress 22906 | -2/Quarantine | Entered Section 7 22907 | -2/Section 7 | Loaded intel: 13 trap records 22960 | -2/Section 7 | Found Integrated Dissipator 22960 | -2/Section 7 | Installed Integrated Dissipator, increased core heat dissipation (+20) 22978 | -2/Section 7 | Spotted S7 Guard 23058 | -2/Section 7 | Found Alien Artifact 23095 | -2/Section 7 | Identified Integrity Redistributor 23212 | -2/Section 7 | Found Alien Artifact 23244 | -2/Section 7 | Identified Integrated Thermoelectric Network 23244 | -2/Section 7 | Installed Integrated Thermoelectric Network, gained heat-energy exchange potential 23341 | -2/Section 7 | Found Alien Artifact 23341 | -2/Section 7 | Identified Microwarp Drive 23424 | -2/Section 7 | Learned Access scanalyzer intel 23452 | -2/Section 7 | Found Alien Artifact 23472 | -2/Section 7 | Identified Spacefold Activator 23481 | -2/Section 7 | Learned location of 2 exits from Research 23520 | -2/Section 7 | Spotted Alpha 7 23612 | -2/Section 7 | Learned Research trap positions 23691 | -2/Section 7 | Found Alien Artifact 23724 | -2/Section 7 | Identified Integrated Mediator 23724 | -2/Section 7 | Installed Integrated Mediator, increased core attachment efficiency 23790 | -2/Section 7 | Spotted B-99 Colossus 23813 | -2/Section 7 | Found Integrity Redistributor 23813 | -2/Section 7 | Used Integrity Redistributor, redistributed integrity from core (-68) 23831 | -2/Section 7 | Found Alien Artifact 23831 | -2/Section 7 | Identified LRC Matter Compressor 23831 | -2/Section 7 | Installed LRC Matter Compressor, increased matter storage capacity (+125) 23882 | -2/Section 7 | Found Integrity Redistributor 23937 | -2/Section 7 | Spotted Executioner 23938 | -2/Section 7 | Spotted Executioner 24057 | -2/Section 7 | Entered Access 24057 | -1/Access | Evolved 2 slots: Weapon x2 24058 | -1/Access | Delivered the SGEMP Prototype to Zhirov 24058 | -1/Access | Zhirov transferred Access data 24059 | -1/Access | Loaded intel: 109 machine locations 24059 | -1/Access | Loaded intel: 67 trap records 24059 | -1/Access | Identified exit to Surface 24059 | -1/Access | Discovered exit to Surface (range 131) 24059 | -1/Access | Identified exit to Command 24059 | -1/Access | Discovered exit to Command (range 104) 24060 | -1/Access | Loaded intel: 4 scanalyzer locations 24087 | -1/Access | Used Core Reset Matrix 24089 | -1/Access | Zhirov warped through subspace 24156 | -1/Access | Found Exp. Actuator Array 24189 | -1/Access | Discovered exit to Command (range 30) 24312 | -1/Access | Found Unknown Protection 24312 | -1/Access | Identified Hvy. Reflective Plating 24561 | -1/Access | Fabricated Point Singularity Launcher? 24659 | -1/Access | Fabricated Point Singularity Launcher? 24797 | -1/Access | Fabricated Point Singularity Launcher? 24877 | -1/Access | Fabricated Point Singularity Launcher (x1) 24953 | -1/Access | Fabricated Point Singularity Launcher (x1) 25012 | -1/Access | Fabricated Prc. Matter Filter (x1) 25277 | -1/Access | Spotted B-99 Colossus 25303 | -1/Access | Spotted B-99 Colossus 25328 | -1/Access | Found Unknown Launcher 25328 | -1/Access | Identified Gamma Bomb Array 25353 | -1/Access | Scrapoid reinforcements arrived 25426 | -1/Access | Lost 5 allies 25541 | -1/Access | Scrapoids reinforcements arrived? 25561 | -1/Access | P-80 Master assimilated allied 01A36-D 25640 | -1/Access | Destroyed B-99 Colossus 25643 | -1/Access | Found Prototype Ballistic Gun 25643 | -1/Access | Identified Multirail 25724 | -1/Access | Found Unknown Protection 25724 | -1/Access | Identified Hvy. Insulated Plating 25727 | -1/Access | Found Unknown Device 25727 | -1/Access | Identified Scrap Suit 25761 | -1/Access | Fabricated Point Singularity Launcher? 25828 | -1/Access | Fabricated Prc. Matter Filter? 25862 | -1/Access | Build established: Machinist-Gladiator 25950 | -1/Access | Fabricated Point Singularity Launcher (x1) 26089 | -1/Access | Entered Command 26360 | -1/Command | Disengaged cave seal 26360 | -1/Command | Assembled emerged from the dark tunnel 26393 | -1/Command | Repaired Exp. Utility Shielding 26468 | -1/Command | Disengaged cave seal 26505 | -1/Command | Scrapoids reinforcements arrived? 26521 | -1/Command | Learned Access security intel 26521 | -1/Command | Lost 3 allies 26563 | -1/Command | Scrapoids reinforcements arrived? 26582 | -1/Command | Learned Access garrison access intel 26604 | -1/Command | Spotted Combat Programmer 26604 | -1/Command | Spotted Combat Programmer 26611 | -1/Command | Spotted M Guard 26611 | -1/Command | Spotted M Guard 26624 | -1/Command | Found Prototype Launcher 26653 | -1/Command | Destroyed M Guard 26669 | -1/Command | Destroyed M Guard 26673 | -1/Command | Lost 23 allies 26677 | -1/Command | Destroyed Combat Programmer 26682 | -1/Command | Destroyed Combat Programmer 26682 | -1/Command | All MAIN.C guards destroyed 26687 | -1/Command | Identified Ragnarok Missile Launcher 26698 | -1/Command | Found Prototype Device 26698 | -1/Command | Identified AEGIS Remote Shield 26712 | -1/Command | Found Prototype Device 26712 | -1/Command | Identified Thermal Barrier 26717 | -1/Command | Found Prototype Protection 26717 | -1/Command | Identified Hvy. Regenerative Plating 26723 | -1/Command | Found Prototype Processor 26723 | -1/Command | Identified Exp. Targeting Computer 26737 | -1/Command | Learned 4 Access zone layouts 26752 | -1/Command | Learned 4 Access zone layouts 26777 | -1/Command | Identified exit to Access_0 26858 | -1/Command | Learned Access trap positions 27192 | -1/Command | Found Zero-point Reactor 27224 | -1/Command | Found Zero-point Reactor 27240 | -1/Command | Met MAIN.C 27247 | -1/Command | 0b10 Conduit disabled 27258 | -1/Command | Destroyed MAIN.C Shell 27260 | -1/Command | MAIN.C activated Command garrisons 27269 | -1/Command | Zhirov used SGEMP to disable MAIN.C 27271 | -1/Command | Attacked by Zhirov 27273 | -1/Command | Allies destroyed Zhirov 27277 | -1/Command | Destroyed Svarog 27284 | -1/Command | Allies destroyed Perun 27289 | -1/Command | Found Zhirov Special 27307 | -1/Command | Lost 4 allies 27771 | -1/Command | Found Scrap Suit 27828 | -1/Command | Found Unknown Device 27828 | -1/Command | Identified Quantum Capacitor 28205 | -1/Command | Found Prototype Device 28205 | -1/Command | Identified Exp. Transmission Jammer 28213 | -1/Command | Found Unknown Protection 28213 | -1/Command | Identified Adv. Powered Armor 28239 | -1/Command | Build established: Scavenger-Executioner 28279 | -1/Command | Discovered exit to Surface (range 39) 28279 | -1/Command | Discovered exit to Surface (range 106) 28279 | -1/Command | Extracted map data and part IDs from MAIN.C's data core 28498 | -1/Command | Found Exp. System Purifier 28955 | -1/Command | Found Exp. Core Analyzer 28958 | -1/Command | Found Exp. Core Analyzer 30161 | -1/Command | Build established: Machinist-Executioner 30168 | -1/Command | Found Adv. Powered Armor 30179 | -1/Command | Found Exp. Powered Armor 30366 | -1/Command | Found Vortex Chain Reactor 30377 | -1/Command | Found Zero-point Reactor 30441 | -1/Command | Found Exp. Force Field 32194 | -1/Command | Found Cld. Nova Cannon 32789 | -1/Command | Warped through subspace to slip node 32801 | -1/Command | Entered Access_0 32801 | -1/Access_0 | Accompanied by 5 allies 32802 | -1/Access_0 | Sensed 1 artifact in vicinity 32802 | -1/Access_0 | Met Architect 32803 | -1/Access_0 | Destroyed A8 32806 | -1/Access_0 | Architect warped through subspace 32836 | -1/Access_0 | Lost 3 allies 32866 | -1/Access_0 | Architect warped through subspace 32990 | -1/Access_0 | Spotted Enhanced Programmer 32991 | -1/Access_0 | Architect warped through subspace 32992 | -1/Access_0 | Spotted Enhanced Programmer 33028 | -1/Access_0 | Destroyed Enhanced Programmer 33084 | -1/Access_0 | Destroyed Enhanced Programmer 33088 | -1/Access_0 | Architect warped through subspace 33134 | -1/Access_0 | Architect warped through subspace 33182 | -1/Access_0 | Architect warped through subspace 33225 | -1/Access_0 | Architect warped through subspace 33271 | -1/Access_0 | Architect warped through subspace 33314 | -1/Access_0 | Architect warped through subspace 33356 | -1/Access_0 | System corruption reached 10% 33358 | -1/Access_0 | Spotted Enhanced Programmer 33364 | -1/Access_0 | Architect warped through subspace 33381 | -1/Access_0 | Destroyed Enhanced Programmer 33403 | -1/Access_0 | Architect warped through subspace 33450 | -1/Access_0 | Architect warped through subspace 33497 | -1/Access_0 | Architect warped through subspace 33541 | -1/Access_0 | Architect warped through subspace 33582 | -1/Access_0 | Architect warped through subspace 33628 | -1/Access_0 | Architect warped through subspace 33671 | -1/Access_0 | Architect warped through subspace 33726 | -1/Access_0 | Architect warped through subspace 33740 | -1/Access_0 | Spotted Enhanced Programmer 33766 | -1/Access_0 | Architect warped through subspace 33826 | -1/Access_0 | Architect warped through subspace 33882 | -1/Access_0 | Architect warped through subspace 33920 | -1/Access_0 | Destroyed Architect 33921 | -1/Access_0 | Architect triggered a singularity event 33924 | -1/Access_0 | Released all parts (20) 33931 | -1/Access_0 | Found Hpw. Transdimensional Reconstructor 33931 | -1/Access_0 | Warped through subspace to slip node 33931 | -1/Access_0 | Discovered exit to Surface (range 8) 33933 | -1/Access_0 | Crushed by singularity! Last Messages --------------- 33924_ Released Adv. Launcher Guidance Computer. 33924_ Released Adv. Heavy Siege Treads. 33924_ Released Huge Storage Unit. 33924_ Released Enh. Armored Heavy Treads. 33924_ Released SHELL Armor. 33924_ Released Vortex Chain Reactor. 33924_ Released Imp. Utility Shielding. 33924_ Released Point Singularity Launcher. 33925_ A0_COM: 7. 33925_ Extracted 92 matter. 33926_ A0_COM: 6. 33927_ A0_COM: 5. 33927_ The unstable cave ceiling collapses. 33928_ A0_COM: 4. 33929_ A0_COM: 3. 33930_ A0_COM: 2. 33931_ A0_COM: 1. 33931_ Acquired Hpw. Transdimensional Reconstructor. 33931_ Warped through subspace, drawn to slip node. 33931_ EXIT=FOUND: SURFACE Map ----- +----------------------------------------------------+ | | | | | | | | | | | | | | | | | | | ?????????????????????????????????????????????????? | | ?????????????????????????????????????????????????? | | ?????????????????????????????????????????????????? | | ?????????????????????????????????????????????????? | | ?????????????????????????????????????????????????? | | ?????????????????????????????????????????????????? | | ??????????????????????????##?????????????????????? | | ?????????????????????????# ##????????????????????? | | ????????????????????????# #????????????????????? | | ????????????????????????# < #????????????????????? | | ????????????????????????# ?????????????????????? | | ???????????????????????? ?????????????????????? | | ???????????????????????? ##????????????????????? | | ???????????????????????## #????????????????????? | | ???????????????????????# #????????????????????? | | ???????????????????????# ##????????????????????? | | ???????????????????????# @ #????????????????????? | | ???????????????????????# ##????????????????????? | | ???????????????????????## #?????????????????????? | | ????????????????????????####?????????????????????? | | ?????????????????????????????????????????????????? | | ?????????????????????????????????????????????????? | | ?????????????????????????????????????????????????? | | ?????????????????????????????????????????????????? | | ?????????????????????????????????????????????????? | | ?????????????????????????????????????????????????? | | ?????????????????????????????????????????????????? | | ?????????????????????????????????????????????????? | | ?????????????????????????????????????????????????? | | ?????????????????????????????????????????????????? | | ?????????????????????????????????????????????????? | | ?????????????????????????????????????????????????? | | ?????????????????????????????????????????????????? | | ?????????????????????????????????????????????????? | | ?????????????????????????????????????????????????? | | ?????????????????????????????????????????????????? | | ?????????????????????????????????????????????????? | | ?????????????????????????????????????????????????? | | ?????????????????????????????????????????????????? | | ?????????????????????????????????????????????????? | | ?????????????????????????????????????????????????? | +----------------------------------------------------+ Best States ------------- Heat Dissipation 202 Energy Generation 61 Energy Capacity 700 Matter Stores 425 Matter Capacity 425 Sight Range 22 Robot Scan Range 20 Terrain Scan Range 30 Terrain Scan Density 1010 ECM Strength 1 Jamming Range 16 Additional Mass Support 20 Base Temperature (-) 200 Corruption Block 6 Armor Coverage 1800 Resistance: KI 35 Resistance: TH 65 Resistance: EX 35 Resistance: EM 100 Resistance: I 35 Resistance: S 35 Resistance: P 35 Utility Shielding 90 Weapon Shielding 66 Melee Speed Boost 50 Phase Shifting 15 Evasion (%) 85 Targeting Accuracy 6 Melee Accuracy 8 Launcher Accuracy 40 Core Analysis 11 Armor Integrity Analysis 40 Recoil Reduction 6 Matter Filtering 75 Salvage Targeting 8 Offensive Hacking 68 Defensive Hacking 20 Authchip Count 4 Trap Extractor Capacity 6 Item Schematics ----------------- Point Singularity Launcher | -1/Access | Hacked Prc. Matter Filter | -1/Access | Hacked Robot Schematics ------------------ None Fabricated ------------ Imp. VTOL Module | x1 | -6/Factory | Authchip Imp. VTOL Module | x1 | -6/Factory | Authchip Trap Extractor | x2 | -6/Factory Transport Network Coupler | x2 | -6/Factory Cld. Ion Engine | x1 | -6/Factory Linear Accelerator | x2 | -6/Factory | Preloaded System Shield | x1 | -6/Factory O-16 Technician | x1 | -6/Factory B-36 Bruiser | x3 | -6/Factory Impulse Thruster Array | x1 | -5/Factory | Preloaded Exp. Hacking Suite | x1 | -4/Factory | Authchip Q-thruster | x2 | -4/Factory | Preloaded Exp. Hacking Suite | x1 | -4/Factory Exp. Signal Interpreter | x1 | -4/Factory Exp. Hacking Suite | x1 | -4/Factory Biomechanical Wings | x1 | -4/Factory Lrn. Terrain Scanner | x2 | -4/Factory Exp. Utility Shielding | x1 | -4/Factory Exp. Hacking Suite | x1 | -4/Factory Biomechanical Wings | x1 | -4/Factory Biomechanical Wings | x1 | -4/Factory Exp. Hacking Suite | x1 | -4/Factory Com. Linear Accelerator | x1 | -4/Factory Adv. Gravity Neutralizer | x1 | -4/Factory Molecular Scythe | x1 | -4/Factory Biomechanical Wings | x1 | -4/Factory Biomechanical Wings | x1 | -4/Factory Biomechanical Wings | x1 | -4/Factory Exp. System Shield | x1 | -4/Factory Imp. Quantum Reactor | x1 | -4/Factory Lgt. Regenerative Plating | x1 | -4/Factory Imp. Quantum Reactor | x1 | -4/Factory Quantum Shading Machine | x1 | -4/Factory Cld. Q-thruster | x1 | -3/Research Exp. Matter Compressor | x1 | -3/Research Nanosword | x1 | -3/Research Exp. Matter Compressor | x1 | -3/Research Cmb. Linear Gravjet | x2 | -3/Testing Cmb. Linear Gravjet | x2 | -3/Testing C-55 Analyst | x1 | -3/Testing | Preloaded Cmb. Linear Gravjet | x2 | -3/Testing Hcp. Storage Unit | x1 | -3/Testing Cmb. Linear Gravjet | x2 | -3/Testing Zero-point Reactor | x1 | -3/Testing Assault Drone Bay | x1 | -3/Testing Nanosword | x1 | -3/Testing Exp. EM Disruption Field | x1 | -3/Testing Nanosword | x1 | -3/Testing Nanosword | x1 | -3/Testing Nanosword | x1 | -2/Research Nanosword | x1 | -2/Research Zero-point Reactor | x1 | -2/Research Femtoactuators | x1 | -2/Research Exp. Terrain Scanner | x1 | -2/Research Zero-point Reactor | x1 | -2/Research Exp. Actuator Array | x1 | -2/Research Exp. Reaction Control System | x1 | -2/Research Point Singularity Launcher | x1 | -1/Access Point Singularity Launcher | x1 | -1/Access Point Singularity Launcher | x1 | -1/Access Point Singularity Launcher | x1 | -1/Access Point Singularity Launcher | x1 | -1/Access Prc. Matter Filter | x1 | -1/Access Point Singularity Launcher | x1 | -1/Access Prc. Matter Filter | x1 | -1/Access Point Singularity Launcher | x1 | -1/Access Alien Tech Used ----------------- Dimensional Node Initializer Integrated Dissipator Subatomic Replicator Matter Drive Phase Armor Sigix Broadsword Core Cannon Core Stripper Integrated Thermoelectric Network Microwarp Drive Integrated Mediator Integrity Redistributor LRC Matter Compressor Core Reset Matrix Supercharged TR High-powered Transdimensional Reconstructor Achievements -------------- None Challenges ------------ None Game ------ Seed SigixForceDoomcannon Manual? 0 Play Time 11:18:35 Cumulative 541.4 hours Start 2024.10.04 @ 10:34:28 End 2024.11.09 @ 11:54:32 Sessions 9 Manual Loads 0 Difficulty Explorer Special Mode None Game No. 203 Rogue 198 Adventurer 4 Explorer 1 Win Type - Total 7 Types 4/1/0/1/0/1/0/0/0 Lore% 88 Gallery% 91 Achievement% 87 Wizard Run 0 Options --------- Layout 0 ASCII 0 Keyboard 0 Movement Numpad Keybinds 0 Fullscreen 2 Font 18/CogNarrow Map View 76x50 Zoom Use 0% Tactical HUD 1 Map Filters NONE Filters NONE Steam 1 RUN: 2d546382-3c1a-4537-903d-0f9ac064b2c5